Workbook

Sheet Instructions
A1: CITY OF PORTLAND - MCC PROGRAM CALCULATOR INSTRUCTIONS
A3: This Mortgage Credit Certificate (MCC) Comparison Spreadsheet is designed to help MCC Certified Loan Officers evaluate whether the MCC Program is the right product for their clients. The information provided is estimates only and requires the skill of a lending professional to evaluate and interpret the resulting outputs. It is not intended for use by the general public. For more information about the City of Portland's MCC program and the eligibility requirements, please visit www.pdc.us/mcc.
A5: PURPOSE OF THIS WORKBOOK
B7: 1. | C7: To help MCC Certified Loan Officers evaluate whether the MCC program is the best product for their clients; and
B9: 2. | C9: To facilitate completion of the unique MCC forms that PDC requires prior to issuing an MCC Commitment
A11: GETTING STARTED
B13: This workbook uses macros to automate the spreadsheet and make it easier to print the individual forms and disclosures required for submission of an application to PDC for approval. Your system must be set to allow macros to run on your computer for these functions to work properly on your computer.
B15: When you first open this workbook, you will likely see a security warning at the bottom of the ribbon. Click "Options" to move to the screen that will allow you to enable macros.
B25: You should now see a screen similar the one below. Click "Enable this Content" and then click "OK". This will enable macros and take you to the beginning of the MCC Data Input worksheet.
A40: MCC DATA INPUT
B42: The MCC Data Input worksheet is where you will enter all of the information needed to complete the comparison and populate the various MCC disclosure and submission forms. This is the only worksheet where input is allowed. All of the other forms are populated based upon what you input here. So, if you see a mistake on any of the forms, this is likely where the error originated.
B44: Note that many fields include drop down boxes that limit your input options for that field.
A62: VIEWING OPTIONS
B64: You may find it helpful to view the MCC Data Input worksheet at the same time as you are reviewing the MCC Comparison Summary or the MCC Disclosure to evaluate how changing different input fields affects qualifying and tax impacts.
B66: To view worksheets side by side go to "View" on the ribbon, under the windows category click "New Window". This should activate the "View side by side" option, click "View side by side" and then click on the tab for the second worksheet you want to view.
B85: This will activate the second worksheet on the screen and your window will look something like this.
B104: To change the order in which the pages are displayed you can click "Arrange All" to set the view screen horizontally, vertically tiled, or cascade. Also note that movement of the screens will be synchronized when you first set-up the side by side viewing. To turn synchronization off, just click "Synchronous Scrolling" in the Windows section.
A119: PRINTING THE FORMS
B121: The workbook has been designed to automatically print each of the unique MCC forms and disclosures that are required for submission of an MCC application package to PHB for approval. You can print all of the forms at one time, or select individual forms for printing. Remember that the information from the MCC Data Input worksheet drives the information that will populate all of the other forms. If you notice an error in the printed form, it likely was caused by an error on the MCC Data Input form.
C123: To print form: | G123: Enter | I123: # of Pages
C124: MCC Data Input | G124: Ctrl+Shift+A | I124: 4
C125: MCC Summary | G125: Ctrl+Shift+B | I125: 2
C126: MCC Disclosure | G126: Ctrl+Shift+C | I126: 5
C127: MCC Transmittal | G127: Ctrl+Shift+D | I127: 1
C128: MCC Recapture Notice | G128: Ctrl+Shift+E | I128: 1
C129: MCC Application Affidavit | G129: Ctrl+Shift+F | I129: 5
C130: All | G130: Ctrl+Shift+G | I130: =SUM(I124:I129) -> 18

Sheet MCC Data Input
A1: Mortgage Credit Certificate Program
A2: Product Comparison Data Input
G3: =IF('MCC Comparison Summary'!E16="OVER INCOME","OVER INCOME"," ") -> 
A4: * Field required to complete pre-qualification comparison. However, all fields must be completed to properly populate forms required for submission to PHB for commitment.
A6: LENDER INFORMATION
A7: Disclosure Date | D7: *
A8: Lender | D8: *
A9: Loan Number
A10: Loan Officer | D10: *
A11: Loan Officer Contact Information | H11: Business Phone
H12: Cell Phone
H13: Fax Number
H14: Email Address
H15: Mailing Address
H16: City/State/Zip
A17: Loan Processor
A18: Loan Processor Contact Information | H18: Business Phone
H19: Cell Phone
H20: Fax Number
H21: Email Address
H22: Mailing Address
H23: City/State/Zip
A25: BORROWER GENERAL INFORMATION
A26: General Information
B27: Applicant Name (legal name) | D27: *
B28: Co-Applicant Name (legal name) | D28: *
B29: Total # of People in Household | D29: *
B30: Homebuyer(s) Gross Annual Income | D30: *
A31: Homebuyer Tax Filing Information
B32: IRS Filing Status (check only 1 filing status) | D32: *
B33: # of Dependent Children under 17 | D33: *
B34: # of "Other" Dependents (for tax purposes) | D34: * | G34: (to add unmarried co-borrower add 1 "other dependent" here)
B35: Other Tax Deductions (excluding property taxes and mortgage insurance) | D35: *
B36: Other Tax Credit (if any) | D36: * | G36: (not including 1st time homebuyer credit)
A38: PURCHASE/PROPERTY INFORMATION
B39: Property Address
B40: City/State/Zip
B41: Property is located in Target Area | E41: No
B42: Type of Construction
B43: If New Construction, has construction been completed?
B44: If incomplete, est. cost to finish construction
E45: Bond Program | G45: Bank Loan
B46: Sales Price | D46: *
B47: Down Payment (as a %) | D47: * | F47: *
B48: Monthly Property Tax Estimate | D48: * | G48: =E48 -> 0
B49: Monthly Hazard Insurance | D49: * | G49: =E49 -> 0
B50: Estimated HOA Dues | D50: * | G50: =E50 -> 0
B51: Calculated Loan Amount (w/o MIP) | E51: =$E$46-($E$46*E47)-(E66*E71) -> 0 | G51: =$E$46-($E$46*G47)-(G66*G71) -> 0
A53: FINANCING INFORMATION
B54: First Mortgage Info | E54: Bond Program | G54: Bank Loan
B55: Note Rate | D55: * | F55: *
B56: Up-front FHA Mortgage Insurance | D56: * | F56: *
B57: Monthly Mortgage Insurance Rate | D57: * | F57: *
B58: Loan Term | D58: * | F58: years
B60: Loan Origination Fee (%) | D60: * | F60: *
B61: Other Financing Charges (APR) | D61: * | F61: *
B62: MCC Fee | G62: 675
B63: Reserve Deposits with Lender | D63: * | F63: *
B64: 3rd Party Fees (Non APR) | D64: * | F64: *
B65: Second Mortgage
B66: Amount of 2nd mortgage | D66: * | E66: 0 | F66: * | G66: 0
B67: 2nd Mortgage Interest Rate | D67: * | F67: *
B68: Term of 2nd mortgage (in years) | D68: * | F68: * | H68: yrs
B69: Second Mortgage Loan Fees | D69: * | E69: 0 | F69: * | G69: 0
B70: Are Payment Required on 2nd mtg? | D70: * | F70: *
B71: % of 2nd mtg proceeds used for purchase | D71: * | F71: *
B72: % of 2nd mtg to Home Impr.Fund | E72: =(1-E71) -> 1 | G72: =(1-G71) -> 1
A74: RECAPTURE ESTIMATOR
B75: Number of years you expect to own this home | F75: *
B76: Homebuyer(s) estimated annual income at sale | F76: *
B77: Estimated household size at sale | F77: *
B78: Estimated annual appreciation | F78: *
B79: Estimated costs of sale | F79: *
A81: BORROWER DEMOGRAPHIC INFORMATION (check all that apply)
E82: Borrower | G82: Co-Borrower
B83: Gender
B84: Race
C85: American Indian/Alaska Native | E85: No | G85: No
C86: Asian | E86: No | G86: No
C87: Black or African American | E87: No | G87: No
C88: Native Hawaiian/Pacific Islander | E88: No | G88: No
C89: White | E89: No | G89: No
C90: Other | E90: No | G90: No
B91: Ethnicity
B92: US Citizen
A94: BORROWER CURRENT AND PRIOR RESIDENCY HISTORY (3 year history)
B95: Borrower Contact Info | H95: Home Phone
H96: Work Phone
H97: Email address
H98: Current Address
H99: City/State/Zip
C100: Own/Rent | E100: Rent
E101: Beginning Date | G101: Ending Date
C102: Length of Residency
B103: Landlord Contact Info | H103: Name
H104: Address
H105: City/State/Zip
H106: Phone Number
B108: Previous Address (1) | H108: Mailing Address
H109: City/State/Zip
C110: Own/Rent | E110: Rent
E111: Beginning Date | G111: Ending Date
C112: Length of Residency
B113: Prior Landlord Contact Info (1) | H113: Name
H114: Address
H115: City/State/Zip
H116: Phone Number
B118: Previous Address (2) | H118: Mailing Address
H119: City/State/Zip
C120: Own/Rent | E120: Rent
E121: Beginning Date | G121: Ending Date
C122: Length of Residency
B123: Prior Landlord Contact Info (2) | H123: Name
H124: Address
H125: City/State/Zip
H126: Phone Number
A128: ESCROW INFORMATION
A129: Escrow Company
A130: Escrow Number
A131: Estimated Closing Date
A132: Escrow Agent
A133: Escrow Contact Info | H133: Phone
H134: Fax Number
H135: Email Address
H136: Mailing Address
H137: City/State/Zip
A150: Drop Down Box Data
A152: Yes
A153: No
A155: has
A156: has not
A158: Own
A159: Rent
A160: NA
A162: Existing
A163: New Construction
A165: Male
A166: Female
A168: Married filing Jointly
A169: Single
A170: Head of Household
A172: Hispanic/Latino
A173: Non-Hispanic/Latino

Sheet MCC Comparison Summary
A1: City of Portland Mortgage Credit Certificate Program
A2: Loan Product Comparison
A4: Applicant(s) Name | C4: Disclosure Date
B5: ='MCC Data Input'!E27 -> 0 | C5: ='MCC Data Input'!E7 -> 00:00:00
B6: =IF('MCC Data Input'!E28>0,+'MCC Data Input'!E28," ") ->  | C6: =IF(E16="OVER INCOME","OVER INCOME"," ") -> 
A7: Lender Name | C7: Prepared By:
B8: ='MCC Data Input'!E8 -> 0 | C8: ='MCC Data Input'!E10 -> 0
A10: HOMEBUYER INFORMATION | C10: Oregon Bond | D10: Traditional Loan | E10: MCC
A11: 1 | B11: IRS Filing Status | C11: =+'MCC Data Input'!E32 -> 0 | D11: =C11 -> 0 | E11: =C11 -> 0
A12: =A11+1 -> 2 | B12: Number of Exemptions for Income Tax Purposes | C12: =IF(C11="MARRIED FILING JOINTLY",2, 1) -> 1 | D12: =+C12 -> 1 | E12: =+C12 -> 1
A13: =A12+1 -> 3 | B13: Number of Children Under 17 | C13: ='MCC Data Input'!E33 -> 0 | D13: =+C13 -> 0 | E13: =+C13 -> 0
A14: =A13+1 -> 4 | B14: Other Dependents for Income Tax Purposes | C14: ='MCC Data Input'!E34 -> 0 | D14: =C14 -> 0 | E14: =D14 -> 0
A15: =A14+1 -> 5 | B15: Family Size | C15: =C14+C13+C12 -> 1 | D15: =D14+D13+D12 -> 1 | E15: =E14+E13+E12 -> 1
A16: =A15+1 -> 6 | B16: ='MCC Data Input'!B30 -> Homebuyer(s) Gross Annual Income | C16: =IF('MCC Data Input'!E30>'Recapture Calculator'!D38,"OVER INCOME",+'MCC Data Input'!E30) -> 0 | D16: ='MCC Data Input'!E30 -> 0 | E16: =IF('MCC Data Input'!E30>'Recapture Calculator'!D37,"OVER INCOME",+'MCC Data Input'!E30) -> 0 | F16: MCC | G16: Bond
A17: SALE AND FIRST MORTGAGE LOAN ASSUMPTIONS | C17: =$C$10 -> Oregon Bond | D17: =$D$10 -> Traditional Loan | E17: =$E$10 -> MCC
A18: =A16+1 -> 7 | B18: Sales Price | C18: ='MCC Data Input'!E46 -> 0 | D18: =$C18 -> 0 | E18: =$C18 -> 0
A19: =A18+1 -> 8 | B19: Amount of Second Mortgage used for Purchase | C19: =C29*'MCC Data Input'!E71 -> 0 | D19: ='MCC Data Input'!G66*'MCC Data Input'!G71 -> 0 | E19: =D19 -> 0
A20: 9 | B20: Borrower Down Payment | C20: =C18*'MCC Data Input'!E47 -> 0 | D20: =D18*'MCC Data Input'!G47 -> 0 | E20: =D20 -> 0
A21: 10 | B21: FHA Upfront MIP | C21: ='MCC Data Input'!E56 -> 0 | D21: ='MCC Data Input'!G56 -> 0 | E21: =D21 -> 0
A22: =A21+1 -> 11 | B22: First Mortgage Loan Amount (incl. up front MI on FHA loans) | C22: =C18-C19-C20+C21 -> 0 | D22: =D18-D19-D20+D21 -> 0 | E22: =E18-E19-E20+E21 -> 0
A23: 12 | B23: First Mortgage Note Rate | C23: ='MCC Data Input'!E55 -> 0 | D23: ='MCC Data Input'!G55 -> 0 | E23: =D23 -> 0
A24: 13 | B24: Monthly Mortgage Insurance Premium Rate | C24: ='MCC Data Input'!E57 -> 0 | D24: ='MCC Data Input'!G57 -> 0 | E24: =D24 -> 0
A25: 14 | B25: Loan Term (years) | C25: ='MCC Data Input'!E58 -> 0 | D25: =C25 -> 0 | E25: =D25 -> 0
A26: 15 | B26: Annual Interest (1st year) | C26: =C22*C23 -> 0 | D26: =D22*D23 -> 0 | E26: =E22*E23 -> 0
A27: 16 | B27: MCC Credit (20% of 1st year interest) | C27: 5e-07 | D27: 5e-06 | E27: =E26*0.2 -> 0
A28: SECOND MORTGAGE LOAN ASSUMPTIONS | C28: =$C$10 -> Oregon Bond | D28: =$D$10 -> Traditional Loan | E28: =$E$10 -> MCC
A29: =A27+1 -> 17 | B29: Amount of Second Mortgage | C29: ='MCC Data Input'!E66 -> 0 | D29: ='MCC Data Input'!G66 -> 0 | E29: =D29 -> 0
A30: =A29+1 -> 18 | B30: Amt of 2nd Mtg deposited in Home Improvement Fund | C30: =C29*'MCC Data Input'!E72 -> 0 | D30: ='MCC Data Input'!G66*'MCC Data Input'!G72 -> 0 | E30: =D30 -> 0
A31: =A30+1 -> 19 | B31: Second Mortgage Interest Rate | C31: ='MCC Data Input'!E67 -> 0 | D31: ='MCC Data Input'!G67 -> 0 | E31: =D31 -> 0
A32: =A31+1 -> 20 | B32: Second Mortgage Loan Term | C32: ='MCC Data Input'!E68 -> 0 | D32: ='MCC Data Input'!G68 -> 0 | E32: =D32 -> 0
A33: =A32+1 -> 21 | B33: Are Payments Required on Second Mortgage? | C33: ='MCC Data Input'!E70 -> 0 | D33: ='MCC Data Input'!G70 -> 0 | E33: =D33 -> 0
A34: MONTHLY PAYMENT COMPARISON | C34: =$C$10 -> Oregon Bond | D34: =$D$10 -> Traditional Loan | E34: =$E$10 -> MCC
A35: =A33+1 -> 22 | B35: First Mortgage Principal and Interest | C35: =-PMT(C23,C25,C22)/12 ->  | D35: =-PMT(D23,D25,D22)/12 ->  | E35: =-PMT(E23,E25,E22)/12 -> 
A36: =A35+1 -> 23 | B36: Second Mortgage Principal and Interest | C36: =IF(C33="Yes",-PMT(C31/12,C32*12,C29),0) -> 0 | D36: =IF(D33="Yes",-PMT(D31/12,D32*12,D29),0) -> 0 | E36: =IF(E33="Yes",-PMT(E31/12,E32*12,E29),0) -> 0
A37: 24 | B37: Estimated Monthly Property Taxes | C37: ='MCC Data Input'!$E$48 -> 0 | D37: ='MCC Data Input'!$E$48 -> 0 | E37: ='MCC Data Input'!$E$48 -> 0
A38: 25 | B38: Estimated Monthly Hazard Insurance Premium | C38: =IF(C40=0,+'MCC Data Input'!$E$49,0) -> 0 | D38: =IF(D40=0,+'MCC Data Input'!$E$49,0) -> 0 | E38: =IF(E40=0,+'MCC Data Input'!$E$49,0) -> 0
A39: 26 | B39: Estimated Monthly Mortgage Insurance | C39: =C22*C24/12 -> 0 | D39: =D22*D24/12 -> 0 | E39: =E22*E24/12 -> 0
A40: 27 | B40: Homeowners Association Dues | C40: ='MCC Data Input'!E50 -> 0 | D40: =C40 -> 0 | E40: =D40 -> 0
A41: 28 | B41: Total Monthly Mortgage Payment | C41: =SUM(C35:C40) ->  | D41: =SUM(D35:D40) ->  | E41: =SUM(E35:E40) -> 
A42: 29 | B42: Maximum Monthly MCC Tax Credit | C42: 0 | D42: 0 | E42: =-E27/12 -> 0
A43: 30 | B43: Net Effective Monthly Payment | C43: =C41+C42 ->  | D43: =D41+D42 ->  | E43: =E41+E42 -> 
A44: FIRST MORTGAGE APR COMPARISON | C44: =$C$10 -> Oregon Bond | D44: =$D$10 -> Traditional Loan | E44: =$E$10 -> MCC
A45: =A43+1 -> 31 | B45: Estimated Annual Percentage Rate (APR) at closing | C45: ='APR Calculations'!C20 ->  | D45: ='APR Calculations'!D20 ->  | E45: ='APR Calculations'!E20 -> 
A46: =A45+1 -> 32 | B46: Eff. Interest Rate if MCC is used for only 9 years (but runs 30 yrs) | E46: ='APR Calculations'!E21 -> 
A47: =A46+1 -> 33 | B47: Eff. Interest Rate if MCC is used full 30 year term | E47: ='APR Calculations'!E22 -> 
A48: =A47+1 -> 34 | B48: Eff. Int. Rate if IRS form 8396 is not filed with federal tax returns | E48: =E45 -> 
A49: LOAN FEES | C49: =$C$10 -> Oregon Bond | D49: =$D$10 -> Traditional Loan | E49: =$E$10 -> MCC
A50: =A47+1 -> 34 | B50: Loan Origination Fee (% of loan amount) | C50: ='MCC Data Input'!E60 -> 0 | D50: ='MCC Data Input'!G60 -> 0 | E50: =D50 -> 0
A51: =A50+1 -> 35 | B51: Loan Origination Fee ($ amount) | C51: =C22*C50 -> 0 | D51: =D22*D50 -> 0 | E51: =E22*E50 -> 0
A52: 36 | B52: Other Prepaid Finance Charges (excluding Loan Orig. Fee) | C52: ='MCC Data Input'!E61 -> 0 | D52: ='MCC Data Input'!G61 -> 0 | E52: =D52 -> 0
A53: 37 | B53: Prepaid/Reserves Deposited with Lender | C53: ='MCC Data Input'!E63 -> 0 | D53: ='MCC Data Input'!G63 -> 0 | E53: =D53 -> 0
A54: 38 | B54: MCC Fee | C54: 0 | D54: 0 | E54: ='MCC Data Input'!G62 -> 675
A55: 39 | B55: 3rd Party Fees | C55: ='MCC Data Input'!E64 -> 0 | D55: ='MCC Data Input'!G64 -> 0 | E55: =D55 -> 0
A56: 40 | B56: Second Mortgage Loan Fees | C56: ='MCC Data Input'!E69 -> 0 | D56: ='MCC Data Input'!G69 -> 0 | E56: =D56 -> 0
A57: 41 | B57: Total Loan Fees | C57: =SUM(C51:C56) -> 0 | D57: =SUM(D51:D56) -> 0 | E57: =SUM(E51:E56) -> 675
A58: 42 | B58: Down Payment from borrowers own funds | C58: =C20 -> 0 | D58: =D20 -> 0 | E58: =E20 -> 0
A59: 43 | B59: Total Estimated Cost to Close | C59: =C57+C58 -> 0 | D59: =D57+D58 -> 0 | E59: =E57+E58 -> 675
A60: FEDERAL TAX ESTIMATE 1., 2. | C60: =$C$10 -> Oregon Bond | D60: =$D$10 -> Traditional Loan | E60: =$E$10 -> MCC
A61: =A59+1 -> 44 | B61: Gross Annual Income | C61: =+C16 -> 0 | D61: =+D16 -> 0 | E61: =+E16 -> 0
A62: =A61+1 -> 45 | B62: Less Interest, Property Tax and Mortgage Insurance Deductions | C62: =-C26-(C37*12)-(C39*12) -> 0 | D62: =-D26-(D37*12)-(D39*12) -> 0 | E62: =-E26*0.8-(E37*12)-(E39*12) -> 0
A63: 46 | B63: Less IRS Exemptions | C63: =-C15*'2010 Tax Table and deducts'!$G$2 -> -3650 | D63: =-D15*'2010 Tax Table and deducts'!$G$2 -> -3650 | E63: =-E15*'2010 Tax Table and deducts'!$G$2 -> -3650
A64: 47 | B64: Other Deductions | C64: =-'MCC Data Input'!E35 -> 0 | D64: =+C64 -> 0 | E64: =+C64 -> 0
A65: 48 | B65: Estimated Taxable Income | C65: =IF(C61="OVER INCOME","OVER INCOME",SUM(C61:C64)) -> -3650 | D65: =IF(D61="OVER INCOME","OVER INCOME",SUM(D61:D64)) -> -3650 | E65: =IF(E61="OVER INCOME","OVER INCOME",SUM(E61:E64)) -> -3650
A66: 49 | B66: 2010 Tax Liability from Calculator | C66: =IF((C11="SINGLE"),+'2010 Tax Table and deducts'!C2,IF((C11="MARRIED FILING JOINTLY"),+'2010 Tax Table and deducts'!C3,IF((C11="HEAD OF HOUSEHOLD"),+'2010 Tax Table and deducts'!C4))) -> FALSE | D66: =IF((D11="SINGLE"),+'2010 Tax Table and deducts'!D2,IF((D11="MARRIED FILING JOINTLY"),+'2010 Tax Table and deducts'!D3,IF((D11="HEAD OF HOUSEHOLD"),+'2010 Tax Table and deducts'!D4))) -> FALSE | E66: =IF((E11="SINGLE"),+'2010 Tax Table and deducts'!E2,IF((E11="MARRIED FILING JOINTLY"),+'2010 Tax Table and deducts'!E3,IF((E11="HEAD OF HOUSEHOLD"),+'2010 Tax Table and deducts'!E4))) -> FALSE
A67: 50 | B67: Estimate Child Tax Credit | C67: =-C13*'2010 Tax Table and deducts'!$G$3 -> 0 | D67: =-D13*'2010 Tax Table and deducts'!$G$3 -> 0 | E67: =-E13*'2010 Tax Table and deducts'!$G$3 -> 0
A68: 51 | B68: Other Tax Credits (enter as a negative figure) | C68: =-'MCC Data Input'!E36 -> 0 | D68: =C68 -> 0 | E68: =D68 -> 0
A69: 52 | B69: Estimated Tax Liability (Before MCC) | C69: =IF(SUM(C66:C68)>0,SUM(C66:C68),0) -> 0 | D69: =IF(SUM(D66:D68)>0,SUM(D66:D68),0) -> 0 | E69: =IF(SUM(E66:E68)>0,SUM(E66:E68),0) -> 0
A70: 53 | B70: Less VALUE OF MCC Tax Credit (based on anticipated tax liability) | C70: 0 | D70: 0 | E70: =-IF(E27<E69,E27,E69) -> 0
A71: 54 | B71: ESTIMATED Net Fed income Tax Owed 2.3. | C71: =SUM(C69:C70) -> 0 | D71: =SUM(D69:D70) -> 0 | E71: =SUM(E69:E70) -> 0
A72: ESTIMATED RECAPTURE TAX 4. | C72: =$C$10 -> Oregon Bond | D72: =$D$10 -> Traditional Loan | E72: =$E$10 -> MCC
A73: =A71+1 -> 55 | B73: Estimated Recapture Tax (only applies if sold within 9 years of purchase) | C73: ='Recapture Calculator'!G31 ->  | D73: 0 | E73: ='Recapture Calculator'!F31 -> 
A74: NET HOUSING EXPENSE | C74: =$C$10 -> Oregon Bond | D74: =$D$10 -> Traditional Loan | E74: =$E$10 -> MCC
A75: =A73+1 -> 56 | B75: Total Annual PITIMI Payment | C75: =C41*12 ->  | D75: =D41*12 ->  | E75: =E41*12 -> 
A76: =A75+1 -> 57 | B76: Less MCC Credit | C76: 0 | D76: 0 | E76: =E70 -> 0
A77: =A76+1 -> 58 | B77: Net Housing Expense-PITI ( AFTER MCC) | C77: =SUM(C75:C76) ->  | D77: =SUM(D75:D76) ->  | E77: =SUM(E75:E76) -> 
A79: Notes: 1. 2010 Federal Tax Tables X, Y-1 and Z - Source: http://www.irs.gov. 2. Income and property taxes used here are ESTIMATES ONLY. Consult with a tax professional to review your individual circumstances. 3. MCC Line 52 cannot be LESS than Zero--MCC is NOT a "refundable" credit. 4. Recapture Tax estimate is based upon future income and sales assumptions provided by homebuyer.

Sheet APR Calculations (hidden)
A1: APR analysis | C1: Bond | D1: Market | E1: MCC
A2: Loan Amount | C2: =E2 -> 0 | D2: =C2 -> 0 | E2: ='MCC Comparison Summary'!C22 -> 0
A3: Interest Rate | C3: ='MCC Comparison Summary'!C23 -> 0 | D3: ='MCC Comparison Summary'!D23 -> 0 | E3: =D3 -> 0
A4: Mortgage Insurance Rate | C4: ='MCC Comparison Summary'!C24 -> 0 | D4: ='MCC Comparison Summary'!D24 -> 0 | E4: ='MCC Comparison Summary'!E24 -> 0
A5: Term | C5: =E5 -> 360 | D5: =C5 -> 360 | E5: 360
A6: Monthly P&I Pmt | C6: =-PMT(C3/12,C5,C2) -> 0 | D6: =-PMT(D3/12,D5,D2) -> 0 | E6: =-PMT(E3/12,E5,E2) -> 0
A7: Mortgage Insurance Premium | C7: ='MCC Comparison Summary'!C39 -> 0 | D7: ='MCC Comparison Summary'!D39 -> 0 | E7: ='MCC Comparison Summary'!E39 -> 0
A8: Total PIMI Pmt | C8: =SUM(C6:C7) -> 0 | D8: =SUM(D6:D7) -> 0 | E8: =SUM(E6:E7) -> 0
A10: Points - % | C10: ='MCC Comparison Summary'!C50 -> 0 | D10: ='MCC Comparison Summary'!D50 -> 0 | E10: ='MCC Comparison Summary'!D50 -> 0
A11: Points - $ | C11: =C2*C10 -> 0 | D11: =D2*D10 -> 0 | E11: =E2*E10 -> 0
A12: Other Finance Charges | C12: ='MCC Comparison Summary'!C52 -> 0 | D12: ='MCC Comparison Summary'!D52 -> 0 | E12: ='MCC Comparison Summary'!E52+'MCC Comparison Summary'!E54 -> 675
A13: Total Prepaid Finance Charges | C13: =SUM(C11:C12) -> 0 | D13: =SUM(D11:D12) -> 0 | E13: =SUM(E11:E12) -> 675
A14: Amount Financed | C14: =C2-C13 -> 0 | D14: =D2-D13 -> 0 | E14: =E2-E13 -> -675
A15: Mortgage Insurance (125 mos) | C15: =(($C$2*$C$4)/12)*125 -> 0 | D15: =(($D$2*$D$4)/12)*125 -> 0 | E15: =(($E$2*$E$4)/12)*125 -> 0
A16: Mortgage Interest Paid | C16: =D27 -> 0 | D16: =J27 -> 0 | E16: =P27 -> 0
A17: Total Finance Charge | C17: =C13+C15+C16 -> 0 | D17: =D13+D15+D16 -> 0 | E17: =E13+E15+E16 -> 675
A18: Total Payments | C18: =C17+C2-C13 -> 0 | D18: =D17+D2-D13 -> 0 | E18: =E17+E2-E13 -> 0
A19: MCC Credit | C19: 0 | E19: 0.2
A20: APR | C20: =RATE(C5,(((-C8*125)+(-C6*235))/360),(C2-C13))*12 ->  | D20: =RATE(D5,(((-D8*125)+(-D6*235))/360),(D2-D13))*12 ->  | E20: =RATE($E$5,(((-$E$8*125)+(-$E$6*235))/360),($E$2-$E$13))*12 ->  | F20: Ave. Mo MCC
A21: Eff. Int. Rate =9 years MCC useage | E21: =RATE($E$5,((((-$E$8*125)+(-$E$6*235)+(F21*108)))/360),($E$2-$E$13))*12 ->  | F21: =H21/108 -> 0 | G21: tax credits | H21: =SUM(R28:R135) -> 0 | I21: Over period
A22: Eff. Int. Rate =30 years MCC useage | E22: =RATE($E$5,((((-$E$8*125)+(-$E$6*235)+(F22*360)))/360),($E$2-$E$13))*12 ->  | F22: =H22/360 -> 0 | G22: tax credits | H22: =R27 -> 0
A25: Bond | G25: Market | M25: MCC Amortization Schedule
B26: Beg Bal | C26: Prin | D26: Interest | E26: Ending Bal | H26: Beg Bal | I26: Prin | J26: Interest | K26: Ending Bal | N26: Beg Bal | O26: Prin | P26: Interest | Q26: Ending Bal | R26: MCC Credit | S26: Effective Interest Cost
A27: Totals | C27: =SUM(C28:C387) -> 0 | D27: =SUM(D28:D387) -> 0 | F27: LTV | G27: Totals | I27: =SUM(I28:I387) -> 0 | J27: =SUM(J28:J387) -> 0 | M27: Totals | O27: =SUM(O28:O387) -> 0 | P27: =SUM(P28:P387) -> 0 | R27: =SUM(R28:R387) -> 0 | S27: =SUM(S28:S387) -> 0
A28: 1 | B28: =$C$2 -> 0 | C28: =$C$6-D28 -> 0 | D28: =B28*$C$3/12 -> 0 | E28: =B28-C28 -> 0 | F28: =E28/$C$2 ->  | G28: 1 | H28: =$D$2 -> 0 | I28: =$D$6-J28 -> 0 | J28: =H28*$D$3/12 -> 0 | K28: =H28-I28 -> 0 | M28: 1 | N28: =$E$2 -> 0 | O28: =$E$6-P28 -> 0 | P28: =N28*$E$3/12 -> 0 | Q28: =N28-O28 -> 0 | R28: =P28*$E$19 -> 0 | S28: =P28-R28 -> 0
A29: =A28+1 -> 2 | B29: =E28 -> 0 | C29: =$C$6-D29 -> 0 | D29: =B29*$C$3/12 -> 0 | E29: =B29-C29 -> 0 | F29: =E29/$C$2 ->  | G29: =G28+1 -> 2 | H29: =K28 -> 0 | I29: =$D$6-J29 -> 0 | J29: =H29*$D$3/12 -> 0 | K29: =H29-I29 -> 0 | M29: =M28+1 -> 2 | N29: =Q28 -> 0 | O29: 0 | P29: 0 | Q29: 0 | R29: 0 | S29: 0
A30: 3 | B30: =E29 -> 0 | C30: =$C$6-D30 -> 0 | D30: =B30*$C$3/12 -> 0 | E30: =B30-C30 -> 0 | G30: 3 | H30: =K29 -> 0 | I30: =$D$6-J30 -> 0 | J30: =H30*$D$3/12 -> 0 | K30: =H30-I30 -> 0 | M30: 3 | N30: 0 | O30: 0 | P30: 0 | Q30: 0 | R30: 0 | S30: 0
A31: 4 | B31: 0 | C31: 0 | D31: 0 | E31: 0 | G31: 4 | H31: 0 | I31: 0 | J31: 0 | K31: 0 | M31: 4 | N31: 0 | O31: 0 | P31: 0 | Q31: 0 | R31: 0 | S31: 0
A32: 5 | B32: 0 | C32: 0 | D32: 0 | E32: 0 | G32: 5 | H32: 0 | I32: 0 | J32: 0 | K32: 0 | M32: 5 | N32: 0 | O32: 0 | P32: 0 | Q32: 0 | R32: 0 | S32: 0
A33: 6 | B33: 0 | C33: 0 | D33: 0 | E33: 0 | G33: 6 | H33: 0 | I33: 0 | J33: 0 | K33: 0 | M33: 6 | N33: 0 | O33: 0 | P33: 0 | Q33: 0 | R33: 0 | S33: 0
A34: 7 | B34: 0 | C34: 0 | D34: 0 | E34: 0 | G34: 7 | H34: 0 | I34: 0 | J34: 0 | K34: 0 | M34: 7 | N34: 0 | O34: 0 | P34: 0 | Q34: 0 | R34: 0 | S34: 0
A35: 8 | B35: 0 | C35: 0 | D35: 0 | E35: 0 | G35: 8 | H35: 0 | I35: 0 | J35: 0 | K35: 0 | M35: 8 | N35: 0 | O35: 0 | P35: 0 | Q35: 0 | R35: 0 | S35: 0
A36: 9 | B36: 0 | C36: 0 | D36: 0 | E36: 0 | G36: 9 | H36: 0 | I36: 0 | J36: 0 | K36: 0 | M36: 9 | N36: 0 | O36: 0 | P36: 0 | Q36: 0 | R36: 0 | S36: 0
A37: 10 | B37: 0 | C37: 0 | D37: 0 | E37: 0 | G37: 10 | H37: 0 | I37: 0 | J37: 0 | K37: 0 | M37: 10 | N37: 0 | O37: 0 | P37: 0 | Q37: 0 | R37: 0 | S37: 0
A38: 11 | B38: 0 | C38: 0 | D38: 0 | E38: 0 | G38: 11 | H38: 0 | I38: 0 | J38: 0 | K38: 0 | M38: 11 | N38: 0 | O38: 0 | P38: 0 | Q38: 0 | R38: 0 | S38: 0
A39: 12 | B39: 0 | C39: 0 | D39: 0 | E39: 0 | G39: 12 | H39: 0 | I39: 0 | J39: 0 | K39: 0 | M39: 12 | N39: 0 | O39: 0 | P39: 0 | Q39: 0 | R39: 0 | S39: 0
A40: 13 | B40: 0 | C40: 0 | D40: 0 | E40: 0 | G40: 13 | H40: 0 | I40: 0 | J40: 0 | K40: 0 | M40: 13 | N40: 0 | O40: 0 | P40: 0 | Q40: 0 | R40: 0 | S40: 0
A41: 14 | B41: 0 | C41: 0 | D41: 0 | E41: 0 | G41: 14 | H41: 0 | I41: 0 | J41: 0 | K41: 0 | M41: 14 | N41: 0 | O41: 0 | P41: 0 | Q41: 0 | R41: 0 | S41: 0
A42: 15 | B42: 0 | C42: 0 | D42: 0 | E42: 0 | G42: 15 | H42: 0 | I42: 0 | J42: 0 | K42: 0 | M42: 15 | N42: 0 | O42: 0 | P42: 0 | Q42: 0 | R42: 0 | S42: 0
A43: 16 | B43: 0 | C43: 0 | D43: 0 | E43: 0 | G43: 16 | H43: 0 | I43: 0 | J43: 0 | K43: 0 | M43: 16 | N43: 0 | O43: 0 | P43: 0 | Q43: 0 | R43: 0 | S43: 0
A44: 17 | B44: 0 | C44: 0 | D44: 0 | E44: 0 | G44: 17 | H44: 0 | I44: 0 | J44: 0 | K44: 0 | M44: 17 | N44: 0 | O44: 0 | P44: 0 | Q44: 0 | R44: 0 | S44: 0
A45: 18 | B45: 0 | C45: 0 | D45: 0 | E45: 0 | G45: 18 | H45: 0 | I45: 0 | J45: 0 | K45: 0 | M45: 18 | N45: 0 | O45: 0 | P45: 0 | Q45: 0 | R45: 0 | S45: 0
A46: 19 | B46: 0 | C46: 0 | D46: 0 | E46: 0 | G46: 19 | H46: 0 | I46: 0 | J46: 0 | K46: 0 | M46: 19 | N46: 0 | O46: 0 | P46: 0 | Q46: 0 | R46: 0 | S46: 0
A47: 20 | B47: 0 | C47: 0 | D47: 0 | E47: 0 | G47: 20 | H47: 0 | I47: 0 | J47: 0 | K47: 0 | M47: 20 | N47: 0 | O47: 0 | P47: 0 | Q47: 0 | R47: 0 | S47: 0
A48: 21 | B48: 0 | C48: 0 | D48: 0 | E48: 0 | G48: 21 | H48: 0 | I48: 0 | J48: 0 | K48: 0 | M48: 21 | N48: 0 | O48: 0 | P48: 0 | Q48: 0 | R48: 0 | S48: 0
A49: 22 | B49: 0 | C49: 0 | D49: 0 | E49: 0 | G49: 22 | H49: 0 | I49: 0 | J49: 0 | K49: 0 | M49: 22 | N49: 0 | O49: 0 | P49: 0 | Q49: 0 | R49: 0 | S49: 0
A50: 23 | B50: 0 | C50: 0 | D50: 0 | E50: 0 | G50: 23 | H50: 0 | I50: 0 | J50: 0 | K50: 0 | M50: 23 | N50: 0 | O50: 0 | P50: 0 | Q50: 0 | R50: 0 | S50: 0
A51: 24 | B51: 0 | C51: 0 | D51: 0 | E51: 0 | G51: 24 | H51: 0 | I51: 0 | J51: 0 | K51: 0 | M51: 24 | N51: 0 | O51: 0 | P51: 0 | Q51: 0 | R51: 0 | S51: 0
A52: 25 | B52: 0 | C52: 0 | D52: 0 | E52: 0 | G52: 25 | H52: 0 | I52: 0 | J52: 0 | K52: 0 | M52: 25 | N52: 0 | O52: 0 | P52: 0 | Q52: 0 | R52: 0 | S52: 0
A53: 26 | B53: 0 | C53: 0 | D53: 0 | E53: 0 | G53: 26 | H53: 0 | I53: 0 | J53: 0 | K53: 0 | M53: 26 | N53: 0 | O53: 0 | P53: 0 | Q53: 0 | R53: 0 | S53: 0
A54: 27 | B54: 0 | C54: 0 | D54: 0 | E54: 0 | G54: 27 | H54: 0 | I54: 0 | J54: 0 | K54: 0 | M54: 27 | N54: 0 | O54: 0 | P54: 0 | Q54: 0 | R54: 0 | S54: 0
A55: 28 | B55: 0 | C55: 0 | D55: 0 | E55: 0 | G55: 28 | H55: 0 | I55: 0 | J55: 0 | K55: 0 | M55: 28 | N55: 0 | O55: 0 | P55: 0 | Q55: 0 | R55: 0 | S55: 0
A56: 29 | B56: 0 | C56: 0 | D56: 0 | E56: 0 | G56: 29 | H56: 0 | I56: 0 | J56: 0 | K56: 0 | M56: 29 | N56: 0 | O56: 0 | P56: 0 | Q56: 0 | R56: 0 | S56: 0
A57: 30 | B57: 0 | C57: 0 | D57: 0 | E57: 0 | G57: 30 | H57: 0 | I57: 0 | J57: 0 | K57: 0 | M57: 30 | N57: 0 | O57: 0 | P57: 0 | Q57: 0 | R57: 0 | S57: 0
A58: 31 | B58: 0 | C58: 0 | D58: 0 | E58: 0 | G58: 31 | H58: 0 | I58: 0 | J58: 0 | K58: 0 | M58: 31 | N58: 0 | O58: 0 | P58: 0 | Q58: 0 | R58: 0 | S58: 0
A59: 32 | B59: 0 | C59: 0 | D59: 0 | E59: 0 | G59: 32 | H59: 0 | I59: 0 | J59: 0 | K59: 0 | M59: 32 | N59: 0 | O59: 0 | P59: 0 | Q59: 0 | R59: 0 | S59: 0
A60: 33 | B60: 0 | C60: 0 | D60: 0 | E60: 0 | G60: 33 | H60: 0 | I60: 0 | J60: 0 | K60: 0 | M60: 33 | N60: 0 | O60: 0 | P60: 0 | Q60: 0 | R60: 0 | S60: =P60-R60 -> 0
A61: 34 | B61: 0 | C61: 0 | D61: 0 | E61: 0 | G61: 34 | H61: 0 | I61: 0 | J61: 0 | K61: 0 | M61: 34 | N61: 0 | O61: 0 | P61: 0 | Q61: 0 | R61: 0 | S61: 0
A62: 35 | B62: 0 | C62: 0 | D62: 0 | E62: 0 | G62: 35 | H62: 0 | I62: 0 | J62: 0 | K62: 0 | M62: 35 | N62: 0 | O62: 0 | P62: 0 | Q62: 0 | R62: 0 | S62: 0
A63: 36 | B63: 0 | C63: 0 | D63: 0 | E63: 0 | G63: 36 | H63: 0 | I63: 0 | J63: 0 | K63: 0 | M63: 36 | N63: 0 | O63: 0 | P63: 0 | Q63: 0 | R63: 0 | S63: 0
A64: 37 | B64: 0 | C64: 0 | D64: 0 | E64: 0 | G64: 37 | H64: 0 | I64: 0 | J64: 0 | K64: 0 | M64: 37 | N64: 0 | O64: 0 | P64: 0 | Q64: 0 | R64: 0 | S64: 0
A65: 38 | B65: 0 | C65: 0 | D65: 0 | E65: 0 | G65: 38 | H65: 0 | I65: 0 | J65: 0 | K65: 0 | M65: 38 | N65: 0 | O65: 0 | P65: 0 | Q65: 0 | R65: 0 | S65: 0
A66: 39 | B66: 0 | C66: 0 | D66: 0 | E66: 0 | G66: 39 | H66: 0 | I66: 0 | J66: 0 | K66: 0 | M66: 39 | N66: 0 | O66: 0 | P66: 0 | Q66: 0 | R66: 0 | S66: 0
A67: 40 | B67: 0 | C67: 0 | D67: 0 | E67: 0 | G67: 40 | H67: 0 | I67: 0 | J67: 0 | K67: 0 | M67: 40 | N67: 0 | O67: 0 | P67: 0 | Q67: 0 | R67: 0 | S67: 0
A68: 41 | B68: 0 | C68: 0 | D68: 0 | E68: 0 | G68: 41 | H68: 0 | I68: 0 | J68: 0 | K68: 0 | M68: 41 | N68: 0 | O68: 0 | P68: 0 | Q68: 0 | R68: 0 | S68: 0
A69: 42 | B69: 0 | C69: 0 | D69: 0 | E69: 0 | G69: 42 | H69: 0 | I69: 0 | J69: 0 | K69: 0 | M69: 42 | N69: 0 | O69: 0 | P69: 0 | Q69: 0 | R69: 0 | S69: 0
A70: 43 | B70: 0 | C70: 0 | D70: 0 | E70: 0 | G70: 43 | H70: 0 | I70: 0 | J70: 0 | K70: 0 | M70: 43 | N70: 0 | O70: 0 | P70: 0 | Q70: 0 | R70: 0 | S70: 0
A71: 44 | B71: 0 | C71: 0 | D71: 0 | E71: 0 | G71: 44 | H71: 0 | I71: 0 | J71: 0 | K71: 0 | M71: 44 | N71: 0 | O71: 0 | P71: 0 | Q71: 0 | R71: 0 | S71: 0
A72: 45 | B72: 0 | C72: 0 | D72: 0 | E72: 0 | G72: 45 | H72: 0 | I72: 0 | J72: 0 | K72: 0 | M72: 45 | N72: 0 | O72: 0 | P72: 0 | Q72: 0 | R72: 0 | S72: 0
A73: 46 | B73: 0 | C73: 0 | D73: 0 | E73: 0 | G73: 46 | H73: 0 | I73: 0 | J73: 0 | K73: 0 | M73: 46 | N73: 0 | O73: 0 | P73: 0 | Q73: 0 | R73: 0 | S73: 0
A74: 47 | B74: 0 | C74: 0 | D74: 0 | E74: 0 | G74: 47 | H74: 0 | I74: 0 | J74: 0 | K74: 0 | M74: 47 | N74: 0 | O74: 0 | P74: 0 | Q74: 0 | R74: 0 | S74: 0
A75: 48 | B75: 0 | C75: 0 | D75: 0 | E75: 0 | G75: 48 | H75: 0 | I75: 0 | J75: 0 | K75: 0 | M75: 48 | N75: 0 | O75: 0 | P75: 0 | Q75: 0 | R75: 0 | S75: 0
A76: 49 | B76: 0 | C76: 0 | D76: 0 | E76: 0 | G76: 49 | H76: 0 | I76: 0 | J76: 0 | K76: 0 | M76: 49 | N76: 0 | O76: 0 | P76: 0 | Q76: 0 | R76: 0 | S76: 0
A77: 50 | B77: 0 | C77: 0 | D77: 0 | E77: 0 | G77: 50 | H77: 0 | I77: 0 | J77: 0 | K77: 0 | M77: 50 | N77: 0 | O77: 0 | P77: 0 | Q77: 0 | R77: 0 | S77: 0
A78: 51 | B78: 0 | C78: 0 | D78: 0 | E78: 0 | G78: 51 | H78: 0 | I78: 0 | J78: 0 | K78: 0 | M78: 51 | N78: 0 | O78: 0 | P78: 0 | Q78: 0 | R78: 0 | S78: 0
A79: 52 | B79: 0 | C79: 0 | D79: 0 | E79: 0 | G79: 52 | H79: 0 | I79: 0 | J79: 0 | K79: 0 | M79: 52 | N79: 0 | O79: 0 | P79: 0 | Q79: 0 | R79: 0 | S79: 0
A80: 53 | B80: 0 | C80: 0 | D80: 0 | E80: 0 | G80: 53 | H80: 0 | I80: 0 | J80: 0 | K80: 0 | M80: 53 | N80: 0 | O80: 0 | P80: 0 | Q80: 0 | R80: 0 | S80: 0
A81: 54 | B81: 0 | C81: 0 | D81: 0 | E81: 0 | G81: 54 | H81: 0 | I81: 0 | J81: 0 | K81: 0 | M81: 54 | N81: 0 | O81: 0 | P81: 0 | Q81: 0 | R81: 0 | S81: 0
A82: 55 | B82: 0 | C82: 0 | D82: 0 | E82: 0 | G82: 55 | H82: 0 | I82: 0 | J82: 0 | K82: 0 | M82: 55 | N82: 0 | O82: 0 | P82: 0 | Q82: 0 | R82: 0 | S82: 0
A83: 56 | B83: 0 | C83: 0 | D83: 0 | E83: 0 | G83: 56 | H83: 0 | I83: 0 | J83: 0 | K83: 0 | M83: 56 | N83: 0 | O83: 0 | P83: 0 | Q83: 0 | R83: 0 | S83: 0
A84: 57 | B84: 0 | C84: 0 | D84: 0 | E84: 0 | G84: 57 | H84: 0 | I84: 0 | J84: 0 | K84: 0 | M84: 57 | N84: 0 | O84: 0 | P84: 0 | Q84: 0 | R84: 0 | S84: 0
A85: 58 | B85: 0 | C85: 0 | D85: 0 | E85: 0 | G85: 58 | H85: 0 | I85: 0 | J85: 0 | K85: 0 | M85: 58 | N85: 0 | O85: 0 | P85: 0 | Q85: 0 | R85: 0 | S85: 0
A86: 59 | B86: 0 | C86: 0 | D86: 0 | E86: 0 | G86: 59 | H86: 0 | I86: 0 | J86: 0 | K86: 0 | M86: 59 | N86: 0 | O86: 0 | P86: 0 | Q86: 0 | R86: 0 | S86: 0
A87: 60 | B87: 0 | C87: 0 | D87: 0 | E87: 0 | G87: 60 | H87: 0 | I87: 0 | J87: 0 | K87: 0 | M87: 60 | N87: 0 | O87: 0 | P87: 0 | Q87: 0 | R87: 0 | S87: 0
A88: 61 | B88: 0 | C88: 0 | D88: 0 | E88: 0 | G88: 61 | H88: 0 | I88: 0 | J88: 0 | K88: 0 | M88: 61 | N88: 0 | O88: 0 | P88: 0 | Q88: 0 | R88: 0 | S88: 0
A89: 62 | B89: 0 | C89: 0 | D89: 0 | E89: 0 | G89: 62 | H89: 0 | I89: 0 | J89: 0 | K89: 0 | M89: 62 | N89: 0 | O89: 0 | P89: 0 | Q89: 0 | R89: 0 | S89: 0
A90: 63 | B90: 0 | C90: 0 | D90: 0 | E90: 0 | G90: 63 | H90: 0 | I90: 0 | J90: 0 | K90: 0 | M90: 63 | N90: 0 | O90: 0 | P90: 0 | Q90: 0 | R90: 0 | S90: 0
A91: 64 | B91: 0 | C91: 0 | D91: 0 | E91: 0 | G91: 64 | H91: 0 | I91: 0 | J91: 0 | K91: 0 | M91: 64 | N91: 0 | O91: 0 | P91: 0 | Q91: 0 | R91: 0 | S91: 0
A92: 65 | B92: 0 | C92: 0 | D92: 0 | E92: 0 | G92: 65 | H92: 0 | I92: 0 | J92: 0 | K92: 0 | M92: 65 | N92: 0 | O92: =$E$6-P92 -> 0 | P92: =N92*$E$3/12 -> 0 | Q92: =N92-O92 -> 0 | R92: =P92*$E$19 -> 0 | S92: =P92-R92 -> 0
A93: =A92+1 -> 66 | B93: 0 | C93: 0 | D93: 0 | E93: 0 | F93: =E93/$C$2 ->  | G93: =G92+1 -> 66 | H93: 0 | I93: 0 | J93: 0 | K93: 0 | M93: =M92+1 -> 66 | N93: =Q92 -> 0 | O93: 0 | P93: 0 | Q93: 0 | R93: 0 | S93: 0
A94: 67 | B94: =E93 -> 0 | C94: =$C$6-D94 -> 0 | D94: =B94*$C$3/12 -> 0 | E94: =B94-C94 -> 0 | G94: 67 | H94: =K93 -> 0 | I94: =$D$6-J94 -> 0 | J94: =H94*$D$3/12 -> 0 | K94: =H94-I94 -> 0 | M94: 67 | N94: 0 | O94: 0 | P94: 0 | Q94: 0 | R94: 0 | S94: 0
A95: 68 | B95: 0 | C95: 0 | D95: 0 | E95: 0 | G95: 68 | H95: 0 | I95: 0 | J95: 0 | K95: 0 | M95: 68 | N95: 0 | O95: 0 | P95: 0 | Q95: 0 | R95: 0 | S95: 0
A96: 69 | B96: 0 | C96: 0 | D96: 0 | E96: 0 | G96: 69 | H96: 0 | I96: 0 | J96: 0 | K96: 0 | M96: 69 | N96: 0 | O96: 0 | P96: 0 | Q96: 0 | R96: 0 | S96: 0
A97: 70 | B97: 0 | C97: 0 | D97: 0 | E97: 0 | G97: 70 | H97: 0 | I97: 0 | J97: 0 | K97: 0 | M97: 70 | N97: 0 | O97: 0 | P97: 0 | Q97: 0 | R97: 0 | S97: 0
A98: 71 | B98: 0 | C98: 0 | D98: 0 | E98: 0 | G98: 71 | H98: 0 | I98: 0 | J98: 0 | K98: 0 | M98: 71 | N98: 0 | O98: 0 | P98: 0 | Q98: 0 | R98: 0 | S98: 0
A99: 72 | B99: 0 | C99: 0 | D99: 0 | E99: 0 | G99: 72 | H99: 0 | I99: 0 | J99: 0 | K99: 0 | M99: 72 | N99: 0 | O99: 0 | P99: 0 | Q99: 0 | R99: 0 | S99: 0
A100: 73 | B100: 0 | C100: 0 | D100: 0 | E100: 0 | G100: 73 | H100: 0 | I100: 0 | J100: 0 | K100: 0 | M100: 73 | N100: 0 | O100: 0 | P100: 0 | Q100: 0 | R100: 0 | S100: 0
A101: 74 | B101: 0 | C101: 0 | D101: 0 | E101: 0 | G101: 74 | H101: 0 | I101: 0 | J101: 0 | K101: 0 | M101: 74 | N101: 0 | O101: 0 | P101: 0 | Q101: 0 | R101: 0 | S101: 0
A102: 75 | B102: 0 | C102: 0 | D102: 0 | E102: 0 | G102: 75 | H102: 0 | I102: 0 | J102: 0 | K102: 0 | M102: 75 | N102: 0 | O102: 0 | P102: 0 | Q102: 0 | R102: 0 | S102: 0
A103: 76 | B103: 0 | C103: 0 | D103: 0 | E103: 0 | G103: 76 | H103: 0 | I103: 0 | J103: 0 | K103: 0 | M103: 76 | N103: 0 | O103: 0 | P103: 0 | Q103: 0 | R103: 0 | S103: 0
A104: 77 | B104: 0 | C104: 0 | D104: 0 | E104: 0 | G104: 77 | H104: 0 | I104: 0 | J104: 0 | K104: 0 | M104: 77 | N104: 0 | O104: 0 | P104: 0 | Q104: 0 | R104: 0 | S104: 0
A105: 78 | B105: 0 | C105: 0 | D105: 0 | E105: 0 | G105: 78 | H105: 0 | I105: 0 | J105: 0 | K105: 0 | M105: 78 | N105: 0 | O105: 0 | P105: 0 | Q105: 0 | R105: 0 | S105: 0
A106: 79 | B106: 0 | C106: 0 | D106: 0 | E106: 0 | G106: 79 | H106: 0 | I106: 0 | J106: 0 | K106: 0 | M106: 79 | N106: 0 | O106: 0 | P106: 0 | Q106: 0 | R106: 0 | S106: 0
A107: 80 | B107: 0 | C107: 0 | D107: 0 | E107: 0 | G107: 80 | H107: 0 | I107: 0 | J107: 0 | K107: 0 | M107: 80 | N107: 0 | O107: 0 | P107: 0 | Q107: 0 | R107: 0 | S107: 0
A108: 81 | B108: 0 | C108: 0 | D108: 0 | E108: 0 | G108: 81 | H108: 0 | I108: 0 | J108: 0 | K108: 0 | M108: 81 | N108: 0 | O108: 0 | P108: 0 | Q108: 0 | R108: 0 | S108: 0
A109: 82 | B109: 0 | C109: 0 | D109: 0 | E109: 0 | G109: 82 | H109: 0 | I109: 0 | J109: 0 | K109: 0 | M109: 82 | N109: 0 | O109: 0 | P109: 0 | Q109: 0 | R109: 0 | S109: 0
A110: 83 | B110: 0 | C110: 0 | D110: 0 | E110: 0 | G110: 83 | H110: 0 | I110: 0 | J110: 0 | K110: 0 | M110: 83 | N110: 0 | O110: 0 | P110: 0 | Q110: 0 | R110: 0 | S110: 0
A111: 84 | B111: 0 | C111: 0 | D111: 0 | E111: 0 | G111: 84 | H111: 0 | I111: 0 | J111: 0 | K111: 0 | M111: 84 | N111: 0 | O111: 0 | P111: 0 | Q111: 0 | R111: 0 | S111: 0
A112: 85 | B112: 0 | C112: 0 | D112: 0 | E112: 0 | G112: 85 | H112: 0 | I112: 0 | J112: 0 | K112: 0 | M112: 85 | N112: 0 | O112: 0 | P112: 0 | Q112: 0 | R112: 0 | S112: 0
A113: 86 | B113: 0 | C113: 0 | D113: 0 | E113: 0 | G113: 86 | H113: 0 | I113: 0 | J113: 0 | K113: 0 | M113: 86 | N113: 0 | O113: 0 | P113: 0 | Q113: 0 | R113: 0 | S113: 0
A114: 87 | B114: 0 | C114: 0 | D114: 0 | E114: 0 | G114: 87 | H114: 0 | I114: 0 | J114: 0 | K114: 0 | M114: 87 | N114: 0 | O114: 0 | P114: 0 | Q114: 0 | R114: 0 | S114: 0
A115: 88 | B115: 0 | C115: 0 | D115: 0 | E115: 0 | G115: 88 | H115: 0 | I115: 0 | J115: 0 | K115: 0 | M115: 88 | N115: 0 | O115: 0 | P115: 0 | Q115: 0 | R115: 0 | S115: 0
A116: 89 | B116: 0 | C116: 0 | D116: 0 | E116: 0 | G116: 89 | H116: 0 | I116: 0 | J116: 0 | K116: 0 | M116: 89 | N116: 0 | O116: 0 | P116: 0 | Q116: 0 | R116: 0 | S116: 0
A117: 90 | B117: 0 | C117: 0 | D117: 0 | E117: 0 | G117: 90 | H117: 0 | I117: 0 | J117: 0 | K117: 0 | M117: 90 | N117: 0 | O117: 0 | P117: 0 | Q117: 0 | R117: 0 | S117: 0
A118: 91 | B118: 0 | C118: 0 | D118: 0 | E118: 0 | G118: 91 | H118: 0 | I118: 0 | J118: 0 | K118: 0 | M118: 91 | N118: 0 | O118: 0 | P118: 0 | Q118: 0 | R118: 0 | S118: 0
A119: 92 | B119: 0 | C119: 0 | D119: 0 | E119: 0 | G119: 92 | H119: 0 | I119: 0 | J119: 0 | K119: 0 | M119: 92 | N119: 0 | O119: 0 | P119: 0 | Q119: 0 | R119: 0 | S119: 0
A120: 93 | B120: 0 | C120: 0 | D120: 0 | E120: 0 | G120: 93 | H120: 0 | I120: 0 | J120: 0 | K120: 0 | M120: 93 | N120: 0 | O120: 0 | P120: 0 | Q120: 0 | R120: 0 | S120: 0
A121: 94 | B121: 0 | C121: 0 | D121: 0 | E121: 0 | G121: 94 | H121: 0 | I121: 0 | J121: 0 | K121: 0 | M121: 94 | N121: 0 | O121: 0 | P121: 0 | Q121: 0 | R121: 0 | S121: 0
A122: 95 | B122: 0 | C122: 0 | D122: 0 | E122: 0 | G122: 95 | H122: 0 | I122: 0 | J122: 0 | K122: 0 | M122: 95 | N122: 0 | O122: 0 | P122: 0 | Q122: 0 | R122: 0 | S122: 0
A123: 96 | B123: 0 | C123: 0 | D123: 0 | E123: 0 | G123: 96 | H123: 0 | I123: 0 | J123: 0 | K123: 0 | M123: 96 | N123: 0 | O123: 0 | P123: 0 | Q123: 0 | R123: 0 | S123: 0
A124: 97 | B124: 0 | C124: 0 | D124: 0 | E124: 0 | G124: 97 | H124: 0 | I124: 0 | J124: 0 | K124: 0 | M124: 97 | N124: 0 | O124: 0 | P124: 0 | Q124: 0 | R124: 0 | S124: =P124-R124 -> 0
A125: 98 | B125: 0 | C125: 0 | D125: 0 | E125: 0 | G125: 98 | H125: 0 | I125: 0 | J125: 0 | K125: 0 | M125: 98 | N125: 0 | O125: 0 | P125: 0 | Q125: 0 | R125: 0 | S125: 0
A126: 99 | B126: 0 | C126: 0 | D126: 0 | E126: 0 | G126: 99 | H126: 0 | I126: 0 | J126: 0 | K126: 0 | M126: 99 | N126: 0 | O126: 0 | P126: 0 | Q126: 0 | R126: 0 | S126: 0
A127: 100 | B127: 0 | C127: 0 | D127: 0 | E127: 0 | G127: 100 | H127: 0 | I127: 0 | J127: 0 | K127: 0 | M127: 100 | N127: 0 | O127: 0 | P127: 0 | Q127: 0 | R127: 0 | S127: 0
A128: 101 | B128: 0 | C128: 0 | D128: 0 | E128: 0 | G128: 101 | H128: 0 | I128: 0 | J128: 0 | K128: 0 | M128: 101 | N128: 0 | O128: 0 | P128: 0 | Q128: 0 | R128: 0 | S128: 0
A129: 102 | B129: 0 | C129: 0 | D129: 0 | E129: 0 | G129: 102 | H129: 0 | I129: 0 | J129: 0 | K129: 0 | M129: 102 | N129: 0 | O129: 0 | P129: 0 | Q129: 0 | R129: 0 | S129: 0
A130: 103 | B130: 0 | C130: 0 | D130: 0 | E130: 0 | G130: 103 | H130: 0 | I130: 0 | J130: 0 | K130: 0 | M130: 103 | N130: 0 | O130: 0 | P130: 0 | Q130: 0 | R130: 0 | S130: 0
A131: 104 | B131: 0 | C131: 0 | D131: 0 | E131: 0 | G131: 104 | H131: 0 | I131: 0 | J131: 0 | K131: 0 | M131: 104 | N131: 0 | O131: 0 | P131: 0 | Q131: 0 | R131: 0 | S131: 0
A132: 105 | B132: 0 | C132: 0 | D132: 0 | E132: 0 | G132: 105 | H132: 0 | I132: 0 | J132: 0 | K132: 0 | M132: 105 | N132: 0 | O132: 0 | P132: 0 | Q132: 0 | R132: 0 | S132: 0
A133: 106 | B133: 0 | C133: 0 | D133: 0 | E133: 0 | G133: 106 | H133: 0 | I133: 0 | J133: 0 | K133: 0 | M133: 106 | N133: 0 | O133: 0 | P133: 0 | Q133: 0 | R133: 0 | S133: 0
A134: 107 | B134: 0 | C134: 0 | D134: 0 | E134: 0 | G134: 107 | H134: 0 | I134: 0 | J134: 0 | K134: 0 | M134: 107 | N134: 0 | O134: 0 | P134: 0 | Q134: 0 | R134: 0 | S134: 0
A135: 108 | B135: 0 | C135: 0 | D135: 0 | E135: 0 | G135: 108 | H135: 0 | I135: 0 | J135: 0 | K135: 0 | M135: 108 | N135: 0 | O135: 0 | P135: 0 | Q135: 0 | R135: 0 | S135: 0
A136: 109 | B136: 0 | C136: 0 | D136: 0 | E136: 0 | G136: 109 | H136: 0 | I136: 0 | J136: 0 | K136: 0 | M136: 109 | N136: 0 | O136: 0 | P136: 0 | Q136: 0 | R136: 0 | S136: =P136-R136 -> 0
A137: 110 | B137: 0 | C137: 0 | D137: 0 | E137: 0 | G137: 110 | H137: 0 | I137: 0 | J137: 0 | K137: 0 | M137: 110 | N137: 0 | O137: 0 | P137: 0 | Q137: 0 | R137: 0 | S137: 0
A138: 111 | B138: 0 | C138: 0 | D138: 0 | E138: 0 | G138: 111 | H138: 0 | I138: 0 | J138: 0 | K138: 0 | M138: 111 | N138: 0 | O138: 0 | P138: 0 | Q138: 0 | R138: 0 | S138: 0
A139: 112 | B139: 0 | C139: 0 | D139: 0 | E139: 0 | G139: 112 | H139: 0 | I139: 0 | J139: 0 | K139: 0 | M139: 112 | N139: 0 | O139: 0 | P139: 0 | Q139: 0 | R139: 0 | S139: 0
A140: 113 | B140: 0 | C140: 0 | D140: 0 | E140: 0 | G140: 113 | H140: 0 | I140: 0 | J140: 0 | K140: 0 | M140: 113 | N140: 0 | O140: 0 | P140: 0 | Q140: 0 | R140: 0 | S140: 0
A141: 114 | B141: 0 | C141: 0 | D141: 0 | E141: 0 | G141: 114 | H141: 0 | I141: 0 | J141: 0 | K141: 0 | M141: 114 | N141: 0 | O141: 0 | P141: 0 | Q141: 0 | R141: 0 | S141: 0
A142: 115 | B142: 0 | C142: 0 | D142: 0 | E142: 0 | G142: 115 | H142: 0 | I142: 0 | J142: 0 | K142: 0 | M142: 115 | N142: 0 | O142: 0 | P142: 0 | Q142: 0 | R142: 0 | S142: 0
A143: 116 | B143: 0 | C143: 0 | D143: 0 | E143: 0 | G143: 116 | H143: 0 | I143: 0 | J143: 0 | K143: 0 | M143: 116 | N143: 0 | O143: 0 | P143: 0 | Q143: 0 | R143: 0 | S143: 0
A144: 117 | B144: 0 | C144: 0 | D144: 0 | E144: 0 | G144: 117 | H144: 0 | I144: 0 | J144: 0 | K144: 0 | M144: 117 | N144: 0 | O144: 0 | P144: 0 | Q144: 0 | R144: 0 | S144: 0
A145: 118 | B145: 0 | C145: 0 | D145: 0 | E145: 0 | G145: 118 | H145: 0 | I145: 0 | J145: 0 | K145: 0 | M145: 118 | N145: 0 | O145: 0 | P145: 0 | Q145: 0 | R145: 0 | S145: 0
A146: 119 | B146: 0 | C146: 0 | D146: 0 | E146: 0 | G146: 119 | H146: 0 | I146: 0 | J146: 0 | K146: 0 | M146: 119 | N146: 0 | O146: 0 | P146: 0 | Q146: 0 | R146: 0 | S146: 0
A147: 120 | B147: 0 | C147: 0 | D147: 0 | E147: 0 | G147: 120 | H147: 0 | I147: 0 | J147: 0 | K147: 0 | M147: 120 | N147: 0 | O147: 0 | P147: 0 | Q147: 0 | R147: 0 | S147: 0
A148: 121 | B148: 0 | C148: 0 | D148: 0 | E148: 0 | G148: 121 | H148: 0 | I148: 0 | J148: 0 | K148: 0 | M148: 121 | N148: 0 | O148: 0 | P148: 0 | Q148: 0 | R148: 0 | S148: 0
A149: 122 | B149: 0 | C149: 0 | D149: 0 | E149: 0 | G149: 122 | H149: 0 | I149: 0 | J149: 0 | K149: 0 | M149: 122 | N149: 0 | O149: 0 | P149: 0 | Q149: 0 | R149: 0 | S149: 0
A150: 123 | B150: 0 | C150: 0 | D150: 0 | E150: 0 | G150: 123 | H150: 0 | I150: 0 | J150: 0 | K150: 0 | M150: 123 | N150: 0 | O150: 0 | P150: 0 | Q150: 0 | R150: 0 | S150: 0
A151: 124 | B151: 0 | C151: 0 | D151: 0 | E151: 0 | G151: 124 | H151: 0 | I151: 0 | J151: 0 | K151: 0 | M151: 124 | N151: 0 | O151: 0 | P151: 0 | Q151: 0 | R151: 0 | S151: 0
A152: 125 | B152: 0 | C152: 0 | D152: 0 | E152: 0 | G152: 125 | H152: 0 | I152: 0 | J152: 0 | K152: 0 | M152: 125 | N152: 0 | O152: 0 | P152: 0 | Q152: 0 | R152: 0 | S152: 0
A153: 126 | B153: 0 | C153: 0 | D153: 0 | E153: 0 | G153: 126 | H153: 0 | I153: 0 | J153: 0 | K153: 0 | M153: 126 | N153: 0 | O153: 0 | P153: 0 | Q153: 0 | R153: 0 | S153: 0
A154: 127 | B154: 0 | C154: 0 | D154: 0 | E154: 0 | G154: 127 | H154: 0 | I154: 0 | J154: 0 | K154: 0 | M154: 127 | N154: 0 | O154: 0 | P154: 0 | Q154: 0 | R154: 0 | S154: 0
A155: 128 | B155: 0 | C155: 0 | D155: 0 | E155: 0 | G155: 128 | H155: 0 | I155: 0 | J155: 0 | K155: 0 | M155: 128 | N155: 0 | O155: 0 | P155: 0 | Q155: 0 | R155: 0 | S155: 0
A156: 129 | B156: 0 | C156: 0 | D156: 0 | E156: 0 | G156: 129 | H156: 0 | I156: 0 | J156: 0 | K156: 0 | M156: 129 | N156: 0 | O156: =$E$6-P156 -> 0 | P156: =N156*$E$3/12 -> 0 | Q156: =N156-O156 -> 0 | R156: =P156*$E$19 -> 0 | S156: 0
A157: =A156+1 -> 130 | B157: 0 | C157: 0 | D157: 0 | E157: 0 | F157: =E157/$C$2 ->  | G157: =G156+1 -> 130 | H157: 0 | I157: 0 | J157: 0 | K157: 0 | M157: =M156+1 -> 130 | N157: =Q156 -> 0 | O157: 0 | P157: 0 | Q157: 0 | R157: 0 | S157: 0
A158: 131 | B158: =E157 -> 0 | C158: =$C$6-D158 -> 0 | D158: =B158*$C$3/12 -> 0 | E158: =B158-C158 -> 0 | G158: 131 | H158: =K157 -> 0 | I158: =$D$6-J158 -> 0 | J158: =H158*$D$3/12 -> 0 | K158: =H158-I158 -> 0 | M158: 131 | N158: 0 | O158: 0 | P158: 0 | Q158: 0 | R158: 0 | S158: 0
A159: 132 | B159: 0 | C159: 0 | D159: 0 | E159: 0 | G159: 132 | H159: 0 | I159: 0 | J159: 0 | K159: 0 | M159: 132 | N159: 0 | O159: 0 | P159: 0 | Q159: 0 | R159: 0 | S159: 0
A160: 133 | B160: 0 | C160: 0 | D160: 0 | E160: 0 | G160: 133 | H160: 0 | I160: 0 | J160: 0 | K160: 0 | M160: 133 | N160: 0 | O160: 0 | P160: 0 | Q160: 0 | R160: 0 | S160: 0
A161: 134 | B161: 0 | C161: 0 | D161: 0 | E161: 0 | G161: 134 | H161: 0 | I161: 0 | J161: 0 | K161: 0 | M161: 134 | N161: 0 | O161: 0 | P161: 0 | Q161: 0 | R161: 0 | S161: 0
A162: 135 | B162: 0 | C162: 0 | D162: 0 | E162: 0 | G162: 135 | H162: 0 | I162: 0 | J162: 0 | K162: 0 | M162: 135 | N162: 0 | O162: 0 | P162: 0 | Q162: 0 | R162: 0 | S162: 0
A163: 136 | B163: 0 | C163: 0 | D163: 0 | E163: 0 | G163: 136 | H163: 0 | I163: 0 | J163: 0 | K163: 0 | M163: 136 | N163: 0 | O163: 0 | P163: 0 | Q163: 0 | R163: 0 | S163: 0
A164: 137 | B164: 0 | C164: 0 | D164: 0 | E164: 0 | G164: 137 | H164: 0 | I164: 0 | J164: 0 | K164: 0 | M164: 137 | N164: 0 | O164: 0 | P164: 0 | Q164: 0 | R164: 0 | S164: 0
A165: 138 | B165: 0 | C165: 0 | D165: 0 | E165: 0 | G165: 138 | H165: 0 | I165: 0 | J165: 0 | K165: 0 | M165: 138 | N165: 0 | O165: 0 | P165: 0 | Q165: 0 | R165: 0 | S165: 0
A166: 139 | B166: 0 | C166: 0 | D166: 0 | E166: 0 | G166: 139 | H166: 0 | I166: 0 | J166: 0 | K166: 0 | M166: 139 | N166: 0 | O166: 0 | P166: 0 | Q166: 0 | R166: 0 | S166: 0
A167: 140 | B167: 0 | C167: 0 | D167: 0 | E167: 0 | G167: 140 | H167: 0 | I167: 0 | J167: 0 | K167: 0 | M167: 140 | N167: 0 | O167: 0 | P167: 0 | Q167: 0 | R167: 0 | S167: 0
A168: 141 | B168: 0 | C168: 0 | D168: 0 | E168: 0 | G168: 141 | H168: 0 | I168: 0 | J168: 0 | K168: 0 | M168: 141 | N168: 0 | O168: 0 | P168: 0 | Q168: 0 | R168: 0 | S168: 0
A169: 142 | B169: 0 | C169: 0 | D169: 0 | E169: 0 | G169: 142 | H169: 0 | I169: 0 | J169: 0 | K169: 0 | M169: 142 | N169: 0 | O169: 0 | P169: 0 | Q169: 0 | R169: 0 | S169: 0
A170: 143 | B170: 0 | C170: 0 | D170: 0 | E170: 0 | G170: 143 | H170: 0 | I170: 0 | J170: 0 | K170: 0 | M170: 143 | N170: 0 | O170: 0 | P170: 0 | Q170: 0 | R170: 0 | S170: 0
A171: 144 | B171: 0 | C171: 0 | D171: 0 | E171: 0 | G171: 144 | H171: 0 | I171: 0 | J171: 0 | K171: 0 | M171: 144 | N171: 0 | O171: 0 | P171: 0 | Q171: 0 | R171: 0 | S171: 0
A172: 145 | B172: 0 | C172: 0 | D172: 0 | E172: 0 | G172: 145 | H172: 0 | I172: 0 | J172: 0 | K172: 0 | M172: 145 | N172: 0 | O172: 0 | P172: 0 | Q172: 0 | R172: 0 | S172: 0
A173: 146 | B173: 0 | C173: 0 | D173: 0 | E173: 0 | G173: 146 | H173: 0 | I173: 0 | J173: 0 | K173: 0 | M173: 146 | N173: 0 | O173: 0 | P173: 0 | Q173: 0 | R173: 0 | S173: 0
A174: 147 | B174: 0 | C174: 0 | D174: 0 | E174: 0 | G174: 147 | H174: 0 | I174: 0 | J174: 0 | K174: 0 | M174: 147 | N174: 0 | O174: 0 | P174: 0 | Q174: 0 | R174: 0 | S174: 0
A175: 148 | B175: 0 | C175: 0 | D175: 0 | E175: 0 | G175: 148 | H175: 0 | I175: 0 | J175: 0 | K175: 0 | M175: 148 | N175: 0 | O175: 0 | P175: 0 | Q175: 0 | R175: 0 | S175: 0
A176: 149 | B176: 0 | C176: 0 | D176: 0 | E176: 0 | G176: 149 | H176: 0 | I176: 0 | J176: 0 | K176: 0 | M176: 149 | N176: 0 | O176: 0 | P176: 0 | Q176: 0 | R176: 0 | S176: 0
A177: 150 | B177: 0 | C177: 0 | D177: 0 | E177: 0 | G177: 150 | H177: 0 | I177: 0 | J177: 0 | K177: 0 | M177: 150 | N177: 0 | O177: 0 | P177: 0 | Q177: 0 | R177: 0 | S177: 0
A178: 151 | B178: 0 | C178: 0 | D178: 0 | E178: 0 | G178: 151 | H178: 0 | I178: 0 | J178: 0 | K178: 0 | M178: 151 | N178: 0 | O178: 0 | P178: 0 | Q178: 0 | R178: 0 | S178: 0
A179: 152 | B179: 0 | C179: 0 | D179: 0 | E179: 0 | G179: 152 | H179: 0 | I179: 0 | J179: 0 | K179: 0 | M179: 152 | N179: 0 | O179: 0 | P179: 0 | Q179: 0 | R179: 0 | S179: 0
A180: 153 | B180: 0 | C180: 0 | D180: 0 | E180: 0 | G180: 153 | H180: 0 | I180: 0 | J180: 0 | K180: 0 | M180: 153 | N180: 0 | O180: 0 | P180: 0 | Q180: 0 | R180: 0 | S180: 0
A181: 154 | B181: 0 | C181: 0 | D181: 0 | E181: 0 | G181: 154 | H181: 0 | I181: 0 | J181: 0 | K181: 0 | M181: 154 | N181: 0 | O181: 0 | P181: 0 | Q181: 0 | R181: 0 | S181: 0
A182: 155 | B182: 0 | C182: 0 | D182: 0 | E182: 0 | G182: 155 | H182: 0 | I182: 0 | J182: 0 | K182: 0 | M182: 155 | N182: 0 | O182: 0 | P182: 0 | Q182: 0 | R182: 0 | S182: 0
A183: 156 | B183: 0 | C183: 0 | D183: 0 | E183: 0 | G183: 156 | H183: 0 | I183: 0 | J183: 0 | K183: 0 | M183: 156 | N183: 0 | O183: 0 | P183: 0 | Q183: 0 | R183: 0 | S183: 0
A184: 157 | B184: 0 | C184: 0 | D184: 0 | E184: 0 | G184: 157 | H184: 0 | I184: 0 | J184: 0 | K184: 0 | M184: 157 | N184: 0 | O184: 0 | P184: 0 | Q184: 0 | R184: 0 | S184: 0
A185: 158 | B185: 0 | C185: 0 | D185: 0 | E185: 0 | G185: 158 | H185: 0 | I185: 0 | J185: 0 | K185: 0 | M185: 158 | N185: 0 | O185: 0 | P185: 0 | Q185: 0 | R185: 0 | S185: 0
A186: 159 | B186: 0 | C186: 0 | D186: 0 | E186: 0 | G186: 159 | H186: 0 | I186: 0 | J186: 0 | K186: 0 | M186: 159 | N186: 0 | O186: 0 | P186: 0 | Q186: 0 | R186: 0 | S186: 0
A187: 160 | B187: 0 | C187: 0 | D187: 0 | E187: 0 | G187: 160 | H187: 0 | I187: 0 | J187: 0 | K187: 0 | M187: 160 | N187: 0 | O187: 0 | P187: 0 | Q187: 0 | R187: 0 | S187: 0
A188: 161 | B188: 0 | C188: 0 | D188: 0 | E188: 0 | G188: 161 | H188: 0 | I188: 0 | J188: 0 | K188: 0 | M188: 161 | N188: 0 | O188: 0 | P188: 0 | Q188: 0 | R188: 0 | S188: 0
A189: 162 | B189: 0 | C189: 0 | D189: 0 | E189: 0 | G189: 162 | H189: 0 | I189: 0 | J189: 0 | K189: 0 | M189: 162 | N189: 0 | O189: 0 | P189: 0 | Q189: 0 | R189: 0 | S189: 0
A190: 163 | B190: 0 | C190: 0 | D190: 0 | E190: 0 | G190: 163 | H190: 0 | I190: 0 | J190: 0 | K190: 0 | M190: 163 | N190: 0 | O190: 0 | P190: 0 | Q190: 0 | R190: 0 | S190: 0
A191: 164 | B191: 0 | C191: 0 | D191: 0 | E191: 0 | G191: 164 | H191: 0 | I191: 0 | J191: 0 | K191: 0 | M191: 164 | N191: 0 | O191: 0 | P191: 0 | Q191: 0 | R191: 0 | S191: 0
A192: 165 | B192: 0 | C192: 0 | D192: 0 | E192: 0 | G192: 165 | H192: 0 | I192: 0 | J192: 0 | K192: 0 | M192: 165 | N192: 0 | O192: 0 | P192: 0 | Q192: 0 | R192: 0 | S192: 0
A193: 166 | B193: 0 | C193: 0 | D193: 0 | E193: 0 | G193: 166 | H193: 0 | I193: 0 | J193: 0 | K193: 0 | M193: 166 | N193: 0 | O193: 0 | P193: 0 | Q193: 0 | R193: 0 | S193: 0
A194: 167 | B194: 0 | C194: 0 | D194: 0 | E194: 0 | G194: 167 | H194: 0 | I194: 0 | J194: 0 | K194: 0 | M194: 167 | N194: 0 | O194: 0 | P194: 0 | Q194: 0 | R194: 0 | S194: 0
A195: 168 | B195: 0 | C195: 0 | D195: 0 | E195: 0 | G195: 168 | H195: 0 | I195: 0 | J195: 0 | K195: 0 | M195: 168 | N195: 0 | O195: 0 | P195: 0 | Q195: 0 | R195: 0 | S195: 0
A196: 169 | B196: 0 | C196: 0 | D196: 0 | E196: 0 | G196: 169 | H196: 0 | I196: 0 | J196: 0 | K196: 0 | M196: 169 | N196: 0 | O196: 0 | P196: 0 | Q196: 0 | R196: 0 | S196: 0
A197: 170 | B197: 0 | C197: 0 | D197: 0 | E197: 0 | G197: 170 | H197: 0 | I197: 0 | J197: 0 | K197: 0 | M197: 170 | N197: 0 | O197: 0 | P197: 0 | Q197: 0 | R197: 0 | S197: 0
A198: 171 | B198: 0 | C198: 0 | D198: 0 | E198: 0 | G198: 171 | H198: 0 | I198: 0 | J198: 0 | K198: 0 | M198: 171 | N198: 0 | O198: 0 | P198: 0 | Q198: 0 | R198: 0 | S198: 0
A199: 172 | B199: 0 | C199: 0 | D199: 0 | E199: 0 | G199: 172 | H199: 0 | I199: 0 | J199: 0 | K199: 0 | M199: 172 | N199: 0 | O199: 0 | P199: 0 | Q199: 0 | R199: 0 | S199: 0
A200: 173 | B200: 0 | C200: 0 | D200: 0 | E200: 0 | G200: 173 | H200: 0 | I200: 0 | J200: 0 | K200: 0 | M200: 173 | N200: 0 | O200: 0 | P200: 0 | Q200: 0 | R200: 0 | S200: =P200-R200 -> 0
A201: 174 | B201: 0 | C201: 0 | D201: 0 | E201: 0 | G201: 174 | H201: 0 | I201: 0 | J201: 0 | K201: 0 | M201: 174 | N201: 0 | O201: 0 | P201: 0 | Q201: 0 | R201: 0 | S201: 0
A202: 175 | B202: 0 | C202: 0 | D202: 0 | E202: 0 | G202: 175 | H202: 0 | I202: 0 | J202: 0 | K202: 0 | M202: 175 | N202: 0 | O202: 0 | P202: 0 | Q202: 0 | R202: 0 | S202: 0
A203: 176 | B203: 0 | C203: 0 | D203: 0 | E203: 0 | G203: 176 | H203: 0 | I203: 0 | J203: 0 | K203: 0 | M203: 176 | N203: 0 | O203: 0 | P203: 0 | Q203: 0 | R203: 0 | S203: 0
... 186 more rows

Sheet Recapture Calculator (hidden)
A1: Portland Housing Bureau
A2: Mortgage Credit Certificate
A3: Recapture Tax Estimator
A5: Homeowner Inputs
B7: What was your original loan amount? | G7: ='MCC Comparison Summary'!C22 -> 0
B9: Date you purchased the home. | G9: ='MCC Data Input'!E7 -> 00:00:00
B10: Date you intent to sell the home. | G10: =G9+('MCC Data Input'!G75*365) -> 00:00:00
B11: Years of Ownership | G11: =((YEAR(G10)-YEAR(G9))*12+MONTH(G10)-MONTH(G9))/12 -> 0
B13: Number of People in the Household at time of Sale? | G13: ='MCC Data Input'!G77 -> 0
B15: Estimated adjusted gross income (less gains on sale of the subject property) in the year the home is sold? | G15: ='MCC Data Input'!G76 -> 0
A17: Estimated Recapture Tax
B19: Estimated Sale Price | F19: =-FV('MCC Data Input'!G78,'MCC Data Input'!G75,0,'MCC Data Input'!E46,0) -> 0
B20: Costs of Sale | F20: =F19*'MCC Data Input'!G79 -> 0
B21: Original Purchase Price | F21: ='MCC Data Input'!E46 -> 0
B22: Net Gain on Sale | F22: =IF(F19-F20-F21>0,F19-F20-F21,0) -> 0
A23: A | B23: Estimated Gain on Sale Tax (50% of net proceeds) | F23: =F22*0.5 -> 0
F25: MCC | G25: Bond
B26: Loan amount x 6.25% IRS Recapture Rate | E26: x | F26: =G7*0.0625 -> 0 | G26: =G7*0.0625 -> 0
B27: Holding Period Percentage | E27: x | F27: =VLOOKUP($G$11,Holding_Period,2,TRUE) ->  | G27: =VLOOKUP($G$11,Holding_Period,2,TRUE) -> 
B28: Income Percentage | E28: x | F28: =C67 ->  | G28: =F67 -> 
A29: B | B29: Income Increase Test | F29: =F26*F27*F28 ->  | G29: =G26*G27*G28 -> 
A31: C | B31: Maximum Recapture Tax | F31: =IF($F$23>F29,F29,$F$23) ->  | G31: =IF($F$23>G29,G29,$F$23) -> 
A33: Mortgage Bond Recapture Tax Calculation
A35: Holding Period Percentages
A36: Years of Ownership | B36: Holding Period Percentage
A37: 0.99 | B37: 0.2 | D37: =IF('MCC Data Input'!$E$29<3,+'Recapture Calculator'!B50,+'Recapture Calculator'!C50) -> 73000
A38: 1.99 | B38: 0.4 | D38: =IF('MCC Data Input'!$E$29<3,G50,H50) -> 84000
A39: 2.99 | B39: 0.6
A40: 3.99 | B40: 0.8
A41: 4.99 | B41: 1
A42: 5.99 | B42: 0.8
A43: 6.99 | B43: 0.6
A44: 7.99 | B44: 0.4
A45: 8.99 | B45: 0.2
A46: 9 | B46: 0
A48: MCC Income Adjustments - 2012 | F48: Bond Income Adjustments - 2009
A49: Months of Ownership | B49: 1-2 household | C49: 3 or more household | D49: % Adjustment to Qual. Income | F49: Months of Ownership | G49: 1-2 household | H49: 3 or more household | I49: % Adjustment to Qual. Income
A50: 0.99 | B50: 73000 | C50: 83950 | D50: 1 | F50: 0.99 | G50: 84000 | H50: 98000 | I50: 1
A51: 1.99 | B51: =$B$50*D51 -> 76650 | C51: =$C$50*D51 -> 88147.5 | D51: 1.05 | F51: 1.99 | G51: =$G$50*I51 -> 88200 | H51: =$H$50*I51 -> 102900 | I51: 1.05
A52: 2.99 | B52: 80482.5 | C52: 92554.875 | D52: 1.1025 | F52: 2.99 | G52: =$G$50*I52 -> 92610 | H52: =$H$50*I52 -> 108045 | I52: 1.1025
A53: 3.99 | B53: 84506.99 | C53: 97183.0385 | D53: 1.15763 | F53: 3.99 | G53: 97240.92 | H53: 113447.74 | I53: 1.15763
A54: 4.99 | B54: 88732.23 | C54: 102042.0645 | D54: 1.21551 | F54: 4.99 | G54: 102102.84 | H54: 119119.98 | I54: 1.21551
A55: 5.99 | B55: 93168.44 | C55: 107143.706 | D55: 1.27628 | F55: 5.99 | G55: 107207.52 | H55: 125075.44 | I55: 1.27628
A56: 6.99 | B56: 97827.3 | C56: 112501.395 | D56: 1.3401 | F56: 6.99 | G56: 112568.4 | H56: 131329.8 | I56: 1.3401
A57: 7.99 | B57: 102718.3 | C57: 118126.045 | D57: 1.4071 | F57: 7.99 | G57: 118196.4 | H57: 137895.8 | I57: 1.4071
A58: 8.99 | B58: 107854.58 | C58: 124032.767 | D58: 1.47746 | F58: 8.99 | G58: 124106.64 | H58: 144791.08 | I58: 1.47746
A59: 9 | F59: 9
A60: Income scale is established at MFI in year of purchase
A61: Income Percentage
A63: Modified Adjusted Gross Income | C63: ='MCC Data Input'!$G$76 -> 0 | F63: ='MCC Data Input'!$G$76 -> 0
A64: less Adjusted Qualified Income | C64: =IF($G$13<3,VLOOKUP($G$11,A50:C58,2,TRUE),VLOOKUP($G$11,A50:C58,3,TRUE)) ->  | F64: =IF($G$13<3,VLOOKUP($G$11,F50:H58,2,TRUE),VLOOKUP($G$11,F50:H58,3,TRUE)) -> 
A65: Result | C65: =IF(C63-C64<0,0,C63-C64) ->  | F65: =IF(F63-F64<0,0,F63-F64) -> 
A67: Income Percentage | C67: =IF(C65>=5000,1,C65/5000) ->  | F67: =IF(F65>=5000,1,F65/5000) -> 
A72: Name
A74: Drop Down Box Data
A76: Yes
A77: No
A79: has
A80: has not
A82: Own
A83: Rent
A84: NA
A86: Existing
A87: New Construction
A89: Male
A90: Female
A92: Married filing Jointly
A93: Single
A94: Head of Household
A96: Hispanic/Latino
A97: Non-Hispanic/Latino

Sheet 2010 Tax Table and deducts (hidden)
B1: LOOKUPS
B2: SINGLE | C2: =VLOOKUP('MCC Comparison Summary'!C$65,Single,3) ->  | D2: =VLOOKUP('MCC Comparison Summary'!D$65,Single,3) ->  | E2: =VLOOKUP('MCC Comparison Summary'!E$65,Single,3) ->  | F2: Deductions | G2: 3650
B3: MARRIED FILING JOINTLY | C3: =VLOOKUP('MCC Comparison Summary'!C$65,Married,3) ->  | D3: =VLOOKUP('MCC Comparison Summary'!D$65,Married,3) ->  | E3: =VLOOKUP('MCC Comparison Summary'!E$65,Married,3) ->  | F3: Child Tax Credit | G3: 1000
B4: HEAD OF HOUSEHOLD | C4: =VLOOKUP('MCC Comparison Summary'!C$65,Head_of_Household,3) ->  | D4: =VLOOKUP('MCC Comparison Summary'!D$65,Head_of_Household,3) ->  | E4: =VLOOKUP('MCC Comparison Summary'!E$65,Head_of_Household,3) -> 
C6: SINGLE | F6: MARRIED FILING JOINTLY | J6: HEAD OF HOUSEHOLD
C7: Tax Rate | D7: Tax
B8: AGI | C8: % Rate | D8: Tax | E8: Chg | F8: AGI | G8: % Rate | H8: Tax | I8: Chg | J8: AGI | K8: % Rate | L8: Tax | M8: Chg
B9: 0 | C9: 0 | D9: 0 | E9: 0 | F9: 0 | G9: 0 | H9: 0 | I9: 0 | J9: 0 | K9: 0 | L9: 0 | M9: 0
B10: 25 | C10: 0.1 | D10: =+B10*C10 -> 2.5 | E10: =+D10-D9 -> 2.5 | F10: 25 | G10: 0.1 | H10: =+F10*G10 -> 2.5 | I10: =+H10-H9 -> 2.5 | J10: 25 | K10: 0.1 | L10: =+J10*K10 -> 2.5 | M10: =+L10-L9 -> 2.5
B11: 50 | C11: 0.1 | D11: 5 | E11: 2.5 | F11: 50 | G11: 0.1 | H11: 5 | I11: 2.5 | J11: 50 | K11: 0.1 | L11: 5 | M11: 2.5
B12: 75 | C12: 0.1 | D12: 7.5 | E12: 2.5 | F12: 75 | G12: 0.1 | H12: 7.5 | I12: 2.5 | J12: 75 | K12: 0.1 | L12: 7.5 | M12: 2.5
B13: 100 | C13: 0.1 | D13: 10 | E13: 2.5 | F13: 100 | G13: 0.1 | H13: 10 | I13: 2.5 | J13: 100 | K13: 0.1 | L13: 10 | M13: 2.5
B14: 125 | C14: 0.1 | D14: 12.5 | E14: 2.5 | F14: 125 | G14: 0.1 | H14: 12.5 | I14: 2.5 | J14: 125 | K14: 0.1 | L14: 12.5 | M14: 2.5
B15: 150 | C15: 0.1 | D15: 15 | E15: 2.5 | F15: 150 | G15: 0.1 | H15: 15 | I15: 2.5 | J15: 150 | K15: 0.1 | L15: 15 | M15: 2.5
B16: 175 | C16: 0.1 | D16: 17.5 | E16: 2.5 | F16: 175 | G16: 0.1 | H16: 17.5 | I16: 2.5 | J16: 175 | K16: 0.1 | L16: 17.5 | M16: 2.5
B17: 200 | C17: 0.1 | D17: 20 | E17: 2.5 | F17: 200 | G17: 0.1 | H17: 20 | I17: 2.5 | J17: 200 | K17: 0.1 | L17: 20 | M17: 2.5
B18: 225 | C18: 0.1 | D18: 22.5 | E18: 2.5 | F18: 225 | G18: 0.1 | H18: 22.5 | I18: 2.5 | J18: 225 | K18: 0.1 | L18: 22.5 | M18: 2.5
B19: 250 | C19: 0.1 | D19: 25 | E19: 2.5 | F19: 250 | G19: 0.1 | H19: 25 | I19: 2.5 | J19: 250 | K19: 0.1 | L19: 25 | M19: 2.5
B20: 275 | C20: 0.1 | D20: 27.5 | E20: 2.5 | F20: 275 | G20: 0.1 | H20: 27.5 | I20: 2.5 | J20: 275 | K20: 0.1 | L20: 27.5 | M20: 2.5
B21: 300 | C21: 0.1 | D21: 30 | E21: 2.5 | F21: 300 | G21: 0.1 | H21: 30 | I21: 2.5 | J21: 300 | K21: 0.1 | L21: 30 | M21: 2.5
B22: 325 | C22: 0.1 | D22: 32.5 | E22: 2.5 | F22: 325 | G22: 0.1 | H22: 32.5 | I22: 2.5 | J22: 325 | K22: 0.1 | L22: 32.5 | M22: 2.5
B23: 350 | C23: 0.1 | D23: 35 | E23: 2.5 | F23: 350 | G23: 0.1 | H23: 35 | I23: 2.5 | J23: 350 | K23: 0.1 | L23: 35 | M23: 2.5
B24: 375 | C24: 0.1 | D24: 37.5 | E24: 2.5 | F24: 375 | G24: 0.1 | H24: 37.5 | I24: 2.5 | J24: 375 | K24: 0.1 | L24: 37.5 | M24: 2.5
B25: 400 | C25: 0.1 | D25: 40 | E25: 2.5 | F25: 400 | G25: 0.1 | H25: 40 | I25: 2.5 | J25: 400 | K25: 0.1 | L25: 40 | M25: 2.5
B26: 425 | C26: 0.1 | D26: 42.5 | E26: 2.5 | F26: 425 | G26: 0.1 | H26: 42.5 | I26: 2.5 | J26: 425 | K26: 0.1 | L26: 42.5 | M26: 2.5
B27: 450 | C27: 0.1 | D27: 45 | E27: 2.5 | F27: 450 | G27: 0.1 | H27: 45 | I27: 2.5 | J27: 450 | K27: 0.1 | L27: 45 | M27: 2.5
B28: 475 | C28: 0.1 | D28: 47.5 | E28: 2.5 | F28: 475 | G28: 0.1 | H28: 47.5 | I28: 2.5 | J28: 475 | K28: 0.1 | L28: 47.5 | M28: 2.5
B29: 500 | C29: 0.1 | D29: 50 | E29: 2.5 | F29: 500 | G29: 0.1 | H29: 50 | I29: 2.5 | J29: 500 | K29: 0.1 | L29: 50 | M29: 2.5
B30: 525 | C30: 0.1 | D30: 52.5 | E30: 2.5 | F30: 525 | G30: 0.1 | H30: 52.5 | I30: 2.5 | J30: 525 | K30: 0.1 | L30: 52.5 | M30: 2.5
B31: 550 | C31: 0.1 | D31: 55 | E31: 2.5 | F31: 550 | G31: 0.1 | H31: 55 | I31: 2.5 | J31: 550 | K31: 0.1 | L31: 55 | M31: 2.5
B32: 575 | C32: 0.1 | D32: 57.5 | E32: 2.5 | F32: 575 | G32: 0.1 | H32: 57.5 | I32: 2.5 | J32: 575 | K32: 0.1 | L32: 57.5 | M32: 2.5
B33: 600 | C33: 0.1 | D33: 60 | E33: 2.5 | F33: 600 | G33: 0.1 | H33: 60 | I33: 2.5 | J33: 600 | K33: 0.1 | L33: 60 | M33: 2.5
B34: 625 | C34: 0.1 | D34: 62.5 | E34: 2.5 | F34: 625 | G34: 0.1 | H34: 62.5 | I34: 2.5 | J34: 625 | K34: 0.1 | L34: 62.5 | M34: 2.5
B35: 650 | C35: 0.1 | D35: 65 | E35: 2.5 | F35: 650 | G35: 0.1 | H35: 65 | I35: 2.5 | J35: 650 | K35: 0.1 | L35: 65 | M35: 2.5
B36: 675 | C36: 0.1 | D36: 67.5 | E36: 2.5 | F36: 675 | G36: 0.1 | H36: 67.5 | I36: 2.5 | J36: 675 | K36: 0.1 | L36: 67.5 | M36: 2.5
B37: 700 | C37: 0.1 | D37: 70 | E37: 2.5 | F37: 700 | G37: 0.1 | H37: 70 | I37: 2.5 | J37: 700 | K37: 0.1 | L37: 70 | M37: 2.5
B38: 725 | C38: 0.1 | D38: 72.5 | E38: 2.5 | F38: 725 | G38: 0.1 | H38: 72.5 | I38: 2.5 | J38: 725 | K38: 0.1 | L38: 72.5 | M38: 2.5
B39: 750 | C39: 0.1 | D39: 75 | E39: 2.5 | F39: 750 | G39: 0.1 | H39: 75 | I39: 2.5 | J39: 750 | K39: 0.1 | L39: 75 | M39: 2.5
B40: 775 | C40: 0.1 | D40: 77.5 | E40: 2.5 | F40: 775 | G40: 0.1 | H40: 77.5 | I40: 2.5 | J40: 775 | K40: 0.1 | L40: 77.5 | M40: 2.5
B41: 800 | C41: 0.1 | D41: 80 | E41: 2.5 | F41: 800 | G41: 0.1 | H41: 80 | I41: 2.5 | J41: 800 | K41: 0.1 | L41: 80 | M41: 2.5
B42: 825 | C42: 0.1 | D42: 82.5 | E42: =+D42-D41 -> 2.5 | F42: 825 | G42: 0.1 | H42: 82.5 | I42: 2.5 | J42: 825 | K42: 0.1 | L42: 82.5 | M42: 2.5
B43: 850 | C43: 0.1 | D43: 85 | E43: 2.5 | F43: 850 | G43: 0.1 | H43: 85 | I43: 2.5 | J43: 850 | K43: 0.1 | L43: 85 | M43: 2.5
B44: 875 | C44: 0.1 | D44: 87.5 | E44: 2.5 | F44: 875 | G44: 0.1 | H44: 87.5 | I44: 2.5 | J44: 875 | K44: 0.1 | L44: 87.5 | M44: 2.5
B45: 900 | C45: 0.1 | D45: 90 | E45: 2.5 | F45: 900 | G45: 0.1 | H45: 90 | I45: 2.5 | J45: 900 | K45: 0.1 | L45: 90 | M45: 2.5
B46: 925 | C46: 0.1 | D46: 92.5 | E46: 2.5 | F46: 925 | G46: 0.1 | H46: 92.5 | I46: 2.5 | J46: 925 | K46: 0.1 | L46: 92.5 | M46: 2.5
B47: 950 | C47: 0.1 | D47: 95 | E47: 2.5 | F47: 950 | G47: 0.1 | H47: 95 | I47: 2.5 | J47: 950 | K47: 0.1 | L47: 95 | M47: 2.5
B48: 975 | C48: 0.1 | D48: 97.5 | E48: 2.5 | F48: 975 | G48: 0.1 | H48: 97.5 | I48: 2.5 | J48: 975 | K48: 0.1 | L48: 97.5 | M48: 2.5
B49: 1000 | C49: 0.1 | D49: 100 | E49: 2.5 | F49: 1000 | G49: 0.1 | H49: 100 | I49: 2.5 | J49: 1000 | K49: 0.1 | L49: 100 | M49: 2.5
B50: 1025 | C50: 0.1 | D50: 102.5 | E50: 2.5 | F50: 1025 | G50: 0.1 | H50: 102.5 | I50: 2.5 | J50: 1025 | K50: 0.1 | L50: 102.5 | M50: 2.5
B51: 1050 | C51: 0.1 | D51: 105 | E51: 2.5 | F51: 1050 | G51: 0.1 | H51: 105 | I51: 2.5 | J51: 1050 | K51: 0.1 | L51: 105 | M51: 2.5
B52: 1075 | C52: 0.1 | D52: 107.5 | E52: 2.5 | F52: 1075 | G52: 0.1 | H52: 107.5 | I52: 2.5 | J52: 1075 | K52: 0.1 | L52: 107.5 | M52: 2.5
B53: 1100 | C53: 0.1 | D53: 110 | E53: 2.5 | F53: 1100 | G53: 0.1 | H53: 110 | I53: 2.5 | J53: 1100 | K53: 0.1 | L53: 110 | M53: 2.5
B54: 1125 | C54: 0.1 | D54: 112.5 | E54: 2.5 | F54: 1125 | G54: 0.1 | H54: 112.5 | I54: 2.5 | J54: 1125 | K54: 0.1 | L54: 112.5 | M54: 2.5
B55: 1150 | C55: 0.1 | D55: 115 | E55: 2.5 | F55: 1150 | G55: 0.1 | H55: 115 | I55: 2.5 | J55: 1150 | K55: 0.1 | L55: 115 | M55: 2.5
B56: 1175 | C56: 0.1 | D56: 117.5 | E56: 2.5 | F56: 1175 | G56: 0.1 | H56: 117.5 | I56: 2.5 | J56: 1175 | K56: 0.1 | L56: 117.5 | M56: 2.5
B57: 1200 | C57: 0.1 | D57: 120 | E57: 2.5 | F57: 1200 | G57: 0.1 | H57: 120 | I57: 2.5 | J57: 1200 | K57: 0.1 | L57: 120 | M57: 2.5
B58: 1225 | C58: 0.1 | D58: 122.5 | E58: 2.5 | F58: 1225 | G58: 0.1 | H58: 122.5 | I58: 2.5 | J58: 1225 | K58: 0.1 | L58: 122.5 | M58: 2.5
B59: 1250 | C59: 0.1 | D59: 125 | E59: 2.5 | F59: 1250 | G59: 0.1 | H59: 125 | I59: 2.5 | J59: 1250 | K59: 0.1 | L59: 125 | M59: 2.5
B60: 1275 | C60: 0.1 | D60: 127.5 | E60: 2.5 | F60: 1275 | G60: 0.1 | H60: 127.5 | I60: 2.5 | J60: 1275 | K60: 0.1 | L60: 127.5 | M60: 2.5
B61: 1300 | C61: 0.1 | D61: 130 | E61: 2.5 | F61: 1300 | G61: 0.1 | H61: 130 | I61: 2.5 | J61: 1300 | K61: 0.1 | L61: 130 | M61: 2.5
B62: 1325 | C62: 0.1 | D62: 132.5 | E62: 2.5 | F62: 1325 | G62: 0.1 | H62: 132.5 | I62: 2.5 | J62: 1325 | K62: 0.1 | L62: 132.5 | M62: 2.5
B63: 1350 | C63: 0.1 | D63: 135 | E63: 2.5 | F63: 1350 | G63: 0.1 | H63: 135 | I63: 2.5 | J63: 1350 | K63: 0.1 | L63: 135 | M63: 2.5
B64: 1375 | C64: 0.1 | D64: 137.5 | E64: 2.5 | F64: 1375 | G64: 0.1 | H64: 137.5 | I64: 2.5 | J64: 1375 | K64: 0.1 | L64: 137.5 | M64: 2.5
B65: 1400 | C65: 0.1 | D65: 140 | E65: 2.5 | F65: 1400 | G65: 0.1 | H65: 140 | I65: 2.5 | J65: 1400 | K65: 0.1 | L65: 140 | M65: 2.5
B66: 1425 | C66: 0.1 | D66: 142.5 | E66: 2.5 | F66: 1425 | G66: 0.1 | H66: 142.5 | I66: 2.5 | J66: 1425 | K66: 0.1 | L66: 142.5 | M66: 2.5
B67: 1450 | C67: 0.1 | D67: 145 | E67: 2.5 | F67: 1450 | G67: 0.1 | H67: 145 | I67: 2.5 | J67: 1450 | K67: 0.1 | L67: 145 | M67: 2.5
B68: 1475 | C68: 0.1 | D68: 147.5 | E68: 2.5 | F68: 1475 | G68: 0.1 | H68: 147.5 | I68: 2.5 | J68: 1475 | K68: 0.1 | L68: 147.5 | M68: 2.5
B69: 1500 | C69: 0.1 | D69: 150 | E69: 2.5 | F69: 1500 | G69: 0.1 | H69: 150 | I69: 2.5 | J69: 1500 | K69: 0.1 | L69: 150 | M69: 2.5
B70: 1525 | C70: 0.1 | D70: 152.5 | E70: 2.5 | F70: 1525 | G70: 0.1 | H70: 152.5 | I70: 2.5 | J70: 1525 | K70: 0.1 | L70: 152.5 | M70: 2.5
B71: 1550 | C71: 0.1 | D71: 155 | E71: 2.5 | F71: 1550 | G71: 0.1 | H71: 155 | I71: 2.5 | J71: 1550 | K71: 0.1 | L71: 155 | M71: 2.5
B72: 1575 | C72: 0.1 | D72: 157.5 | E72: 2.5 | F72: 1575 | G72: 0.1 | H72: 157.5 | I72: 2.5 | J72: 1575 | K72: 0.1 | L72: 157.5 | M72: 2.5
B73: 1600 | C73: 0.1 | D73: 160 | E73: 2.5 | F73: 1600 | G73: 0.1 | H73: 160 | I73: 2.5 | J73: 1600 | K73: 0.1 | L73: 160 | M73: 2.5
B74: 1625 | C74: 0.1 | D74: =+B74*C74 -> 162.5 | E74: =+D74-D73 -> 2.5 | F74: 1625 | G74: 0.1 | H74: =+F74*G74 -> 162.5 | I74: =+H74-H73 -> 2.5 | J74: 1625 | K74: 0.1 | L74: =+J74*K74 -> 162.5 | M74: =+L74-L73 -> 2.5
B75: 1650 | C75: 0.1 | D75: 165 | E75: 2.5 | F75: 1650 | G75: 0.1 | H75: 165 | I75: 2.5 | J75: 1650 | K75: 0.1 | L75: 165 | M75: 2.5
B76: 1675 | C76: 0.1 | D76: 167.5 | E76: 2.5 | F76: 1675 | G76: 0.1 | H76: 167.5 | I76: 2.5 | J76: 1675 | K76: 0.1 | L76: 167.5 | M76: 2.5
B77: 1700 | C77: 0.1 | D77: 170 | E77: 2.5 | F77: 1700 | G77: 0.1 | H77: 170 | I77: 2.5 | J77: 1700 | K77: 0.1 | L77: 170 | M77: 2.5
B78: 1725 | C78: 0.1 | D78: 172.5 | E78: 2.5 | F78: 1725 | G78: 0.1 | H78: 172.5 | I78: 2.5 | J78: 1725 | K78: 0.1 | L78: 172.5 | M78: 2.5
B79: 1750 | C79: 0.1 | D79: 175 | E79: 2.5 | F79: 1750 | G79: 0.1 | H79: 175 | I79: 2.5 | J79: 1750 | K79: 0.1 | L79: 175 | M79: 2.5
B80: 1775 | C80: 0.1 | D80: 177.5 | E80: 2.5 | F80: 1775 | G80: 0.1 | H80: 177.5 | I80: 2.5 | J80: 1775 | K80: 0.1 | L80: 177.5 | M80: 2.5
B81: 1800 | C81: 0.1 | D81: 180 | E81: 2.5 | F81: 1800 | G81: 0.1 | H81: 180 | I81: 2.5 | J81: 1800 | K81: 0.1 | L81: 180 | M81: 2.5
B82: 1825 | C82: 0.1 | D82: 182.5 | E82: 2.5 | F82: 1825 | G82: 0.1 | H82: 182.5 | I82: 2.5 | J82: 1825 | K82: 0.1 | L82: 182.5 | M82: 2.5
B83: 1850 | C83: 0.1 | D83: 185 | E83: 2.5 | F83: 1850 | G83: 0.1 | H83: 185 | I83: 2.5 | J83: 1850 | K83: 0.1 | L83: 185 | M83: 2.5
B84: 1875 | C84: 0.1 | D84: 187.5 | E84: 2.5 | F84: 1875 | G84: 0.1 | H84: 187.5 | I84: 2.5 | J84: 1875 | K84: 0.1 | L84: 187.5 | M84: 2.5
B85: 1900 | C85: 0.1 | D85: 190 | E85: 2.5 | F85: 1900 | G85: 0.1 | H85: 190 | I85: 2.5 | J85: 1900 | K85: 0.1 | L85: 190 | M85: 2.5
B86: 1925 | C86: 0.1 | D86: 192.5 | E86: 2.5 | F86: 1925 | G86: 0.1 | H86: 192.5 | I86: 2.5 | J86: 1925 | K86: 0.1 | L86: 192.5 | M86: 2.5
B87: 1950 | C87: 0.1 | D87: 195 | E87: 2.5 | F87: 1950 | G87: 0.1 | H87: 195 | I87: 2.5 | J87: 1950 | K87: 0.1 | L87: 195 | M87: 2.5
B88: 1975 | C88: 0.1 | D88: 197.5 | E88: 2.5 | F88: 1975 | G88: 0.1 | H88: 197.5 | I88: 2.5 | J88: 1975 | K88: 0.1 | L88: 197.5 | M88: 2.5
B89: 2000 | C89: 0.1 | D89: 200 | E89: 2.5 | F89: 2000 | G89: 0.1 | H89: 200 | I89: 2.5 | J89: 2000 | K89: 0.1 | L89: 200 | M89: 2.5
B90: 2025 | C90: 0.1 | D90: 202.5 | E90: 2.5 | F90: 2025 | G90: 0.1 | H90: 202.5 | I90: 2.5 | J90: 2025 | K90: 0.1 | L90: 202.5 | M90: 2.5
B91: 2050 | C91: 0.1 | D91: 205 | E91: 2.5 | F91: 2050 | G91: 0.1 | H91: 205 | I91: 2.5 | J91: 2050 | K91: 0.1 | L91: 205 | M91: 2.5
B92: 2075 | C92: 0.1 | D92: 207.5 | E92: 2.5 | F92: 2075 | G92: 0.1 | H92: 207.5 | I92: 2.5 | J92: 2075 | K92: 0.1 | L92: 207.5 | M92: 2.5
B93: 2100 | C93: 0.1 | D93: 210 | E93: 2.5 | F93: 2100 | G93: 0.1 | H93: 210 | I93: 2.5 | J93: 2100 | K93: 0.1 | L93: 210 | M93: 2.5
B94: 2125 | C94: 0.1 | D94: 212.5 | E94: 2.5 | F94: 2125 | G94: 0.1 | H94: 212.5 | I94: 2.5 | J94: 2125 | K94: 0.1 | L94: 212.5 | M94: 2.5
B95: 2150 | C95: 0.1 | D95: 215 | E95: 2.5 | F95: 2150 | G95: 0.1 | H95: 215 | I95: 2.5 | J95: 2150 | K95: 0.1 | L95: 215 | M95: 2.5
B96: 2175 | C96: 0.1 | D96: 217.5 | E96: 2.5 | F96: 2175 | G96: 0.1 | H96: 217.5 | I96: 2.5 | J96: 2175 | K96: 0.1 | L96: 217.5 | M96: 2.5
B97: 2200 | C97: 0.1 | D97: 220 | E97: 2.5 | F97: 2200 | G97: 0.1 | H97: 220 | I97: 2.5 | J97: 2200 | K97: 0.1 | L97: 220 | M97: 2.5
B98: 2225 | C98: 0.1 | D98: 222.5 | E98: 2.5 | F98: 2225 | G98: 0.1 | H98: 222.5 | I98: 2.5 | J98: 2225 | K98: 0.1 | L98: 222.5 | M98: 2.5
B99: 2250 | C99: 0.1 | D99: 225 | E99: 2.5 | F99: 2250 | G99: 0.1 | H99: 225 | I99: 2.5 | J99: 2250 | K99: 0.1 | L99: 225 | M99: 2.5
B100: 2275 | C100: 0.1 | D100: 227.5 | E100: 2.5 | F100: 2275 | G100: 0.1 | H100: 227.5 | I100: 2.5 | J100: 2275 | K100: 0.1 | L100: 227.5 | M100: 2.5
B101: 2300 | C101: 0.1 | D101: 230 | E101: 2.5 | F101: 2300 | G101: 0.1 | H101: 230 | I101: 2.5 | J101: 2300 | K101: 0.1 | L101: 230 | M101: 2.5
B102: 2325 | C102: 0.1 | D102: 232.5 | E102: 2.5 | F102: 2325 | G102: 0.1 | H102: 232.5 | I102: 2.5 | J102: 2325 | K102: 0.1 | L102: 232.5 | M102: 2.5
B103: 2350 | C103: 0.1 | D103: 235 | E103: 2.5 | F103: 2350 | G103: 0.1 | H103: 235 | I103: 2.5 | J103: 2350 | K103: 0.1 | L103: 235 | M103: 2.5
B104: 2375 | C104: 0.1 | D104: 237.5 | E104: 2.5 | F104: 2375 | G104: 0.1 | H104: 237.5 | I104: 2.5 | J104: 2375 | K104: 0.1 | L104: 237.5 | M104: 2.5
B105: 2400 | C105: 0.1 | D105: 240 | E105: 2.5 | F105: 2400 | G105: 0.1 | H105: 240 | I105: 2.5 | J105: 2400 | K105: 0.1 | L105: 240 | M105: 2.5
B106: 2425 | C106: 0.1 | D106: 242.5 | E106: =+D106-D105 -> 2.5 | F106: 2425 | G106: 0.1 | H106: 242.5 | I106: 2.5 | J106: 2425 | K106: 0.1 | L106: 242.5 | M106: 2.5
B107: 2450 | C107: 0.1 | D107: 245 | E107: 2.5 | F107: 2450 | G107: 0.1 | H107: 245 | I107: 2.5 | J107: 2450 | K107: 0.1 | L107: 245 | M107: 2.5
B108: 2475 | C108: 0.1 | D108: 247.5 | E108: 2.5 | F108: 2475 | G108: 0.1 | H108: 247.5 | I108: 2.5 | J108: 2475 | K108: 0.1 | L108: 247.5 | M108: 2.5
B109: 2500 | C109: 0.1 | D109: 250 | E109: 2.5 | F109: 2500 | G109: 0.1 | H109: 250 | I109: 2.5 | J109: 2500 | K109: 0.1 | L109: 250 | M109: 2.5
B110: 2525 | C110: 0.1 | D110: 252.5 | E110: 2.5 | F110: 2525 | G110: 0.1 | H110: 252.5 | I110: 2.5 | J110: 2525 | K110: 0.1 | L110: 252.5 | M110: 2.5
B111: 2550 | C111: 0.1 | D111: 255 | E111: 2.5 | F111: 2550 | G111: 0.1 | H111: 255 | I111: 2.5 | J111: 2550 | K111: 0.1 | L111: 255 | M111: 2.5
B112: 2575 | C112: 0.1 | D112: 257.5 | E112: 2.5 | F112: 2575 | G112: 0.1 | H112: 257.5 | I112: 2.5 | J112: 2575 | K112: 0.1 | L112: 257.5 | M112: 2.5
B113: 2600 | C113: 0.1 | D113: 260 | E113: 2.5 | F113: 2600 | G113: 0.1 | H113: 260 | I113: 2.5 | J113: 2600 | K113: 0.1 | L113: 260 | M113: 2.5
B114: 2625 | C114: 0.1 | D114: 262.5 | E114: 2.5 | F114: 2625 | G114: 0.1 | H114: 262.5 | I114: 2.5 | J114: 2625 | K114: 0.1 | L114: 262.5 | M114: 2.5
B115: 2650 | C115: 0.1 | D115: 265 | E115: 2.5 | F115: 2650 | G115: 0.1 | H115: 265 | I115: 2.5 | J115: 2650 | K115: 0.1 | L115: 265 | M115: 2.5
B116: 2675 | C116: 0.1 | D116: 267.5 | E116: =M116 -> 2.5 | F116: 2675 | G116: 0.1 | H116: 267.5 | I116: 2.5 | J116: 2675 | K116: 0.1 | L116: 267.5 | M116: 2.5
B117: 2700 | C117: 0.1 | D117: 270 | E117: =+D117-D116 -> 2.5 | F117: 2700 | G117: 0.1 | H117: 270 | I117: 2.5 | J117: 2700 | K117: 0.1 | L117: 270 | M117: 2.5
B118: 2725 | C118: 0.1 | D118: 272.5 | E118: 2.5 | F118: 2725 | G118: 0.1 | H118: 272.5 | I118: 2.5 | J118: 2725 | K118: 0.1 | L118: 272.5 | M118: 2.5
B119: 2750 | C119: 0.1 | D119: 275 | E119: 2.5 | F119: 2750 | G119: 0.1 | H119: 275 | I119: 2.5 | J119: 2750 | K119: 0.1 | L119: 275 | M119: 2.5
B120: 2775 | C120: 0.1 | D120: 277.5 | E120: 2.5 | F120: 2775 | G120: 0.1 | H120: 277.5 | I120: 2.5 | J120: 2775 | K120: 0.1 | L120: 277.5 | M120: 2.5
B121: 2800 | C121: 0.1 | D121: 280 | E121: 2.5 | F121: 2800 | G121: 0.1 | H121: 280 | I121: 2.5 | J121: 2800 | K121: 0.1 | L121: 280 | M121: 2.5
B122: 2825 | C122: 0.1 | D122: 282.5 | E122: 2.5 | F122: 2825 | G122: 0.1 | H122: 282.5 | I122: 2.5 | J122: 2825 | K122: 0.1 | L122: 282.5 | M122: 2.5
B123: 2850 | C123: 0.1 | D123: 285 | E123: 2.5 | F123: 2850 | G123: 0.1 | H123: 285 | I123: 2.5 | J123: 2850 | K123: 0.1 | L123: 285 | M123: 2.5
B124: 2875 | C124: 0.1 | D124: 287.5 | E124: 2.5 | F124: 2875 | G124: 0.1 | H124: 287.5 | I124: 2.5 | J124: 2875 | K124: 0.1 | L124: 287.5 | M124: 2.5
B125: 2900 | C125: 0.1 | D125: 290 | E125: 2.5 | F125: 2900 | G125: 0.1 | H125: 290 | I125: 2.5 | J125: 2900 | K125: 0.1 | L125: 290 | M125: 2.5
B126: 2925 | C126: 0.1 | D126: 292.5 | E126: 2.5 | F126: 2925 | G126: 0.1 | H126: 292.5 | I126: 2.5 | J126: 2925 | K126: 0.1 | L126: 292.5 | M126: 2.5
B127: 2950 | C127: 0.1 | D127: 295 | E127: 2.5 | F127: 2950 | G127: 0.1 | H127: 295 | I127: 2.5 | J127: 2950 | K127: 0.1 | L127: 295 | M127: 2.5
B128: 2975 | C128: 0.1 | D128: 297.5 | E128: 2.5 | F128: 2975 | G128: 0.1 | H128: 297.5 | I128: 2.5 | J128: 2975 | K128: 0.1 | L128: 297.5 | M128: 2.5
B129: 3000 | C129: 0.1 | D129: 300 | E129: 2.5 | F129: 3000 | G129: 0.1 | H129: 300 | I129: 2.5 | J129: 3000 | K129: 0.1 | L129: 300 | M129: 2.5
B130: 3025 | C130: 0.1 | D130: 302.5 | E130: 2.5 | F130: 3025 | G130: 0.1 | H130: 302.5 | I130: 2.5 | J130: 3025 | K130: 0.1 | L130: 302.5 | M130: 2.5
B131: 3050 | C131: 0.1 | D131: 305 | E131: 2.5 | F131: 3050 | G131: 0.1 | H131: 305 | I131: 2.5 | J131: 3050 | K131: 0.1 | L131: 305 | M131: 2.5
B132: 3075 | C132: 0.1 | D132: 307.5 | E132: 2.5 | F132: 3075 | G132: 0.1 | H132: 307.5 | I132: 2.5 | J132: 3075 | K132: 0.1 | L132: 307.5 | M132: 2.5
B133: 3100 | C133: 0.1 | D133: 310 | E133: 2.5 | F133: 3100 | G133: 0.1 | H133: 310 | I133: 2.5 | J133: 3100 | K133: 0.1 | L133: 310 | M133: 2.5
B134: 3125 | C134: 0.1 | D134: 312.5 | E134: 2.5 | F134: 3125 | G134: 0.1 | H134: 312.5 | I134: 2.5 | J134: 3125 | K134: 0.1 | L134: 312.5 | M134: 2.5
B135: 3150 | C135: 0.1 | D135: 315 | E135: 2.5 | F135: 3150 | G135: 0.1 | H135: 315 | I135: 2.5 | J135: 3150 | K135: 0.1 | L135: 315 | M135: 2.5
B136: 3175 | C136: 0.1 | D136: 317.5 | E136: 2.5 | F136: 3175 | G136: 0.1 | H136: 317.5 | I136: 2.5 | J136: 3175 | K136: 0.1 | L136: 317.5 | M136: 2.5
B137: 3200 | C137: 0.1 | D137: 320 | E137: 2.5 | F137: 3200 | G137: 0.1 | H137: 320 | I137: 2.5 | J137: 3200 | K137: 0.1 | L137: 320 | M137: 2.5
B138: 3225 | C138: 0.1 | D138: =+B138*C138 -> 322.5 | E138: 2.5 | F138: 3225 | G138: 0.1 | H138: =+F138*G138 -> 322.5 | I138: =+H138-H137 -> 2.5 | J138: 3225 | K138: 0.1 | L138: =+J138*K138 -> 322.5 | M138: =+L138-L137 -> 2.5
B139: 3250 | C139: 0.1 | D139: 325 | E139: 2.5 | F139: 3250 | G139: 0.1 | H139: 325 | I139: 2.5 | J139: 3250 | K139: 0.1 | L139: 325 | M139: 2.5
B140: 3275 | C140: 0.1 | D140: 327.5 | E140: 2.5 | F140: 3275 | G140: 0.1 | H140: 327.5 | I140: 2.5 | J140: 3275 | K140: 0.1 | L140: 327.5 | M140: 2.5
B141: 3300 | C141: 0.1 | D141: 330 | E141: 2.5 | F141: 3300 | G141: 0.1 | H141: 330 | I141: 2.5 | J141: 3300 | K141: 0.1 | L141: 330 | M141: 2.5
B142: 3325 | C142: 0.1 | D142: 332.5 | E142: 2.5 | F142: 3325 | G142: 0.1 | H142: 332.5 | I142: 2.5 | J142: 3325 | K142: 0.1 | L142: 332.5 | M142: 2.5
B143: 3350 | C143: 0.1 | D143: 335 | E143: 2.5 | F143: 3350 | G143: 0.1 | H143: 335 | I143: 2.5 | J143: 3350 | K143: 0.1 | L143: 335 | M143: 2.5
B144: 3375 | C144: 0.1 | D144: 337.5 | E144: 2.5 | F144: 3375 | G144: 0.1 | H144: 337.5 | I144: 2.5 | J144: 3375 | K144: 0.1 | L144: 337.5 | M144: 2.5
B145: 3400 | C145: 0.1 | D145: 340 | E145: 2.5 | F145: 3400 | G145: 0.1 | H145: 340 | I145: 2.5 | J145: 3400 | K145: 0.1 | L145: 340 | M145: 2.5
B146: 3425 | C146: 0.1 | D146: 342.5 | E146: 2.5 | F146: 3425 | G146: 0.1 | H146: 342.5 | I146: 2.5 | J146: 3425 | K146: 0.1 | L146: 342.5 | M146: 2.5
B147: 3450 | C147: 0.1 | D147: 345 | E147: 2.5 | F147: 3450 | G147: 0.1 | H147: 345 | I147: 2.5 | J147: 3450 | K147: 0.1 | L147: 345 | M147: 2.5
B148: 3475 | C148: 0.1 | D148: 347.5 | E148: 2.5 | F148: 3475 | G148: 0.1 | H148: 347.5 | I148: 2.5 | J148: 3475 | K148: 0.1 | L148: 347.5 | M148: 2.5
B149: 3500 | C149: 0.1 | D149: 350 | E149: 2.5 | F149: 3500 | G149: 0.1 | H149: 350 | I149: 2.5 | J149: 3500 | K149: 0.1 | L149: 350 | M149: 2.5
B150: 3525 | C150: 0.1 | D150: 352.5 | E150: 2.5 | F150: 3525 | G150: 0.1 | H150: 352.5 | I150: 2.5 | J150: 3525 | K150: 0.1 | L150: 352.5 | M150: 2.5
B151: 3550 | C151: 0.1 | D151: 355 | E151: 2.5 | F151: 3550 | G151: 0.1 | H151: 355 | I151: 2.5 | J151: 3550 | K151: 0.1 | L151: 355 | M151: 2.5
B152: 3575 | C152: 0.1 | D152: 357.5 | E152: 2.5 | F152: 3575 | G152: 0.1 | H152: 357.5 | I152: 2.5 | J152: 3575 | K152: 0.1 | L152: 357.5 | M152: 2.5
B153: 3600 | C153: 0.1 | D153: 360 | E153: 2.5 | F153: 3600 | G153: 0.1 | H153: 360 | I153: 2.5 | J153: 3600 | K153: 0.1 | L153: 360 | M153: 2.5
B154: 3625 | C154: 0.1 | D154: 362.5 | E154: 2.5 | F154: 3625 | G154: 0.1 | H154: 362.5 | I154: 2.5 | J154: 3625 | K154: 0.1 | L154: 362.5 | M154: 2.5
B155: 3650 | C155: 0.1 | D155: 365 | E155: 2.5 | F155: 3650 | G155: 0.1 | H155: 365 | I155: 2.5 | J155: 3650 | K155: 0.1 | L155: 365 | M155: 2.5
B156: 3675 | C156: 0.1 | D156: 367.5 | E156: 2.5 | F156: 3675 | G156: 0.1 | H156: 367.5 | I156: 2.5 | J156: 3675 | K156: 0.1 | L156: 367.5 | M156: 2.5
B157: 3700 | C157: 0.1 | D157: 370 | E157: 2.5 | F157: 3700 | G157: 0.1 | H157: 370 | I157: 2.5 | J157: 3700 | K157: 0.1 | L157: 370 | M157: 2.5
B158: 3725 | C158: 0.1 | D158: 372.5 | E158: 2.5 | F158: 3725 | G158: 0.1 | H158: 372.5 | I158: 2.5 | J158: 3725 | K158: 0.1 | L158: 372.5 | M158: 2.5
B159: 3750 | C159: 0.1 | D159: 375 | E159: 2.5 | F159: 3750 | G159: 0.1 | H159: 375 | I159: 2.5 | J159: 3750 | K159: 0.1 | L159: 375 | M159: 2.5
B160: 3775 | C160: 0.1 | D160: 377.5 | E160: 2.5 | F160: 3775 | G160: 0.1 | H160: 377.5 | I160: 2.5 | J160: 3775 | K160: 0.1 | L160: 377.5 | M160: 2.5
B161: 3800 | C161: 0.1 | D161: 380 | E161: 2.5 | F161: 3800 | G161: 0.1 | H161: 380 | I161: 2.5 | J161: 3800 | K161: 0.1 | L161: 380 | M161: 2.5
B162: 3825 | C162: 0.1 | D162: 382.5 | E162: 2.5 | F162: 3825 | G162: 0.1 | H162: 382.5 | I162: 2.5 | J162: 3825 | K162: 0.1 | L162: 382.5 | M162: 2.5
B163: 3850 | C163: 0.1 | D163: 385 | E163: 2.5 | F163: 3850 | G163: 0.1 | H163: 385 | I163: 2.5 | J163: 3850 | K163: 0.1 | L163: 385 | M163: 2.5
B164: 3875 | C164: 0.1 | D164: 387.5 | E164: 2.5 | F164: 3875 | G164: 0.1 | H164: 387.5 | I164: 2.5 | J164: 3875 | K164: 0.1 | L164: 387.5 | M164: 2.5
B165: 3900 | C165: 0.1 | D165: 390 | E165: 2.5 | F165: 3900 | G165: 0.1 | H165: 390 | I165: 2.5 | J165: 3900 | K165: 0.1 | L165: 390 | M165: 2.5
B166: 3925 | C166: 0.1 | D166: 392.5 | E166: 2.5 | F166: 3925 | G166: 0.1 | H166: 392.5 | I166: 2.5 | J166: 3925 | K166: 0.1 | L166: 392.5 | M166: 2.5
B167: 3950 | C167: 0.1 | D167: 395 | E167: 2.5 | F167: 3950 | G167: 0.1 | H167: 395 | I167: 2.5 | J167: 3950 | K167: 0.1 | L167: 395 | M167: 2.5
B168: 3975 | C168: 0.1 | D168: 397.5 | E168: 2.5 | F168: 3975 | G168: 0.1 | H168: 397.5 | I168: 2.5 | J168: 3975 | K168: 0.1 | L168: 397.5 | M168: 2.5
B169: 4000 | C169: 0.1 | D169: 400 | E169: 2.5 | F169: 4000 | G169: 0.1 | H169: 400 | I169: 2.5 | J169: 4000 | K169: 0.1 | L169: 400 | M169: 2.5
B170: 4025 | C170: 0.1 | D170: 402.5 | E170: 2.5 | F170: 4025 | G170: 0.1 | H170: 402.5 | I170: 2.5 | J170: 4025 | K170: 0.1 | L170: 402.5 | M170: 2.5
B171: 4050 | C171: 0.1 | D171: 405 | E171: 2.5 | F171: 4050 | G171: 0.1 | H171: 405 | I171: 2.5 | J171: 4050 | K171: 0.1 | L171: 405 | M171: 2.5
B172: 4075 | C172: 0.1 | D172: 407.5 | E172: 2.5 | F172: 4075 | G172: 0.1 | H172: 407.5 | I172: 2.5 | J172: 4075 | K172: 0.1 | L172: 407.5 | M172: 2.5
B173: 4100 | C173: 0.1 | D173: 410 | E173: 2.5 | F173: 4100 | G173: 0.1 | H173: 410 | I173: 2.5 | J173: 4100 | K173: 0.1 | L173: 410 | M173: 2.5
B174: 4125 | C174: 0.1 | D174: 412.5 | E174: 2.5 | F174: 4125 | G174: 0.1 | H174: 412.5 | I174: 2.5 | J174: 4125 | K174: 0.1 | L174: 412.5 | M174: 2.5
B175: 4150 | C175: 0.1 | D175: 415 | E175: 2.5 | F175: 4150 | G175: 0.1 | H175: 415 | I175: 2.5 | J175: 4150 | K175: 0.1 | L175: 415 | M175: 2.5
B176: 4175 | C176: 0.1 | D176: 417.5 | E176: 2.5 | F176: 4175 | G176: 0.1 | H176: 417.5 | I176: 2.5 | J176: 4175 | K176: 0.1 | L176: 417.5 | M176: 2.5
B177: 4200 | C177: 0.1 | D177: 420 | E177: 2.5 | F177: 4200 | G177: 0.1 | H177: 420 | I177: 2.5 | J177: 4200 | K177: 0.1 | L177: 420 | M177: 2.5
B178: 4225 | C178: 0.1 | D178: 422.5 | E178: 2.5 | F178: 4225 | G178: 0.1 | H178: 422.5 | I178: 2.5 | J178: 4225 | K178: 0.1 | L178: 422.5 | M178: 2.5
B179: 4250 | C179: 0.1 | D179: 425 | E179: 2.5 | F179: 4250 | G179: 0.1 | H179: 425 | I179: 2.5 | J179: 4250 | K179: 0.1 | L179: 425 | M179: 2.5
B180: 4275 | C180: 0.1 | D180: 427.5 | E180: 2.5 | F180: 4275 | G180: 0.1 | H180: 427.5 | I180: 2.5 | J180: 4275 | K180: 0.1 | L180: 427.5 | M180: 2.5
B181: 4300 | C181: 0.1 | D181: 430 | E181: =+D181-D180 -> 2.5 | F181: 4300 | G181: 0.1 | H181: 430 | I181: 2.5 | J181: 4300 | K181: 0.1 | L181: 430 | M181: 2.5
B182: 4325 | C182: 0.1 | D182: 432.5 | E182: 2.5 | F182: 4325 | G182: 0.1 | H182: 432.5 | I182: 2.5 | J182: 4325 | K182: 0.1 | L182: 432.5 | M182: 2.5
B183: 4350 | C183: 0.1 | D183: 435 | E183: 2.5 | F183: 4350 | G183: 0.1 | H183: 435 | I183: 2.5 | J183: 4350 | K183: 0.1 | L183: 435 | M183: 2.5
B184: 4375 | C184: 0.1 | D184: 437.5 | E184: 2.5 | F184: 4375 | G184: 0.1 | H184: 437.5 | I184: 2.5 | J184: 4375 | K184: 0.1 | L184: 437.5 | M184: 2.5
B185: 4400 | C185: 0.1 | D185: 440 | E185: 2.5 | F185: 4400 | G185: 0.1 | H185: 440 | I185: 2.5 | J185: 4400 | K185: 0.1 | L185: 440 | M185: 2.5
B186: 4425 | C186: 0.1 | D186: 442.5 | E186: 2.5 | F186: 4425 | G186: 0.1 | H186: 442.5 | I186: 2.5 | J186: 4425 | K186: 0.1 | L186: 442.5 | M186: 2.5
B187: 4450 | C187: 0.1 | D187: 445 | E187: 2.5 | F187: 4450 | G187: 0.1 | H187: 445 | I187: 2.5 | J187: 4450 | K187: 0.1 | L187: 445 | M187: 2.5
B188: 4475 | C188: 0.1 | D188: 447.5 | E188: 2.5 | F188: 4475 | G188: 0.1 | H188: 447.5 | I188: 2.5 | J188: 4475 | K188: 0.1 | L188: 447.5 | M188: 2.5
B189: 4500 | C189: 0.1 | D189: 450 | E189: 2.5 | F189: 4500 | G189: 0.1 | H189: 450 | I189: 2.5 | J189: 4500 | K189: 0.1 | L189: 450 | M189: 2.5
B190: 4525 | C190: 0.1 | D190: 452.5 | E190: 2.5 | F190: 4525 | G190: 0.1 | H190: 452.5 | I190: 2.5 | J190: 4525 | K190: 0.1 | L190: 452.5 | M190: 2.5
B191: 4550 | C191: 0.1 | D191: 455 | E191: 2.5 | F191: 4550 | G191: 0.1 | H191: 455 | I191: 2.5 | J191: 4550 | K191: 0.1 | L191: 455 | M191: 2.5
B192: 4575 | C192: 0.1 | D192: 457.5 | E192: 2.5 | F192: 4575 | G192: 0.1 | H192: 457.5 | I192: 2.5 | J192: 4575 | K192: 0.1 | L192: 457.5 | M192: 2.5
B193: 4600 | C193: 0.1 | D193: 460 | E193: 2.5 | F193: 4600 | G193: 0.1 | H193: 460 | I193: 2.5 | J193: 4600 | K193: 0.1 | L193: 460 | M193: 2.5
B194: 4625 | C194: 0.1 | D194: 462.5 | E194: 2.5 | F194: 4625 | G194: 0.1 | H194: 462.5 | I194: 2.5 | J194: 4625 | K194: 0.1 | L194: 462.5 | M194: 2.5
B195: 4650 | C195: 0.1 | D195: 465 | E195: 2.5 | F195: 4650 | G195: 0.1 | H195: 465 | I195: 2.5 | J195: 4650 | K195: 0.1 | L195: 465 | M195: 2.5
B196: 4675 | C196: 0.1 | D196: 467.5 | E196: 2.5 | F196: 4675 | G196: 0.1 | H196: 467.5 | I196: 2.5 | J196: 4675 | K196: 0.1 | L196: 467.5 | M196: 2.5
B197: 4700 | C197: 0.1 | D197: 470 | E197: 2.5 | F197: 4700 | G197: 0.1 | H197: 470 | I197: 2.5 | J197: 4700 | K197: 0.1 | L197: 470 | M197: 2.5
B198: 4725 | C198: 0.1 | D198: 472.5 | E198: 2.5 | F198: 4725 | G198: 0.1 | H198: 472.5 | I198: 2.5 | J198: 4725 | K198: 0.1 | L198: 472.5 | M198: 2.5
B199: 4750 | C199: 0.1 | D199: 475 | E199: 2.5 | F199: 4750 | G199: 0.1 | H199: 475 | I199: 2.5 | J199: 4750 | K199: 0.1 | L199: 475 | M199: 2.5
B200: 4775 | C200: 0.1 | D200: 477.5 | E200: 2.5 | F200: 4775 | G200: 0.1 | H200: 477.5 | I200: 2.5 | J200: 4775 | K200: 0.1 | L200: 477.5 | M200: 2.5
B201: 4800 | C201: 0.1 | D201: 480 | E201: 2.5 | F201: 4800 | G201: 0.1 | H201: 480 | I201: 2.5 | J201: 4800 | K201: 0.1 | L201: 480 | M201: 2.5
... 3808 more rows

Sheet MCC Disclosure
A4: Is the Mortgage Credit Certificate right for Me?
A7: Applicant(s) Name: | C7: Disclosure Date:
B8: ='MCC Data Input'!$E$27 -> 0 | C8: ='MCC Data Input'!E7 -> 00:00:00
B9: =IF('MCC Data Input'!E28>0,'MCC Data Input'!E28," ") ->  | C9: =IF('MCC Comparison Summary'!E16="OVER INCOME",+'MCC Comparison Summary'!E16," ") -> 
A10: INTRODUCTION
A11: The City of Portland Mortgage Credit Certificate (MCC) program allows eligible buyers to claim 20 percent of their first mortgage interest as a dollar-for-dollar tax credit versus a traditional tax deduction. An MCC can increase the amount of a mortgage for which a borrower will qualify. If you expect to pay federal income tax (either through payroll deductions or directly at the end of the year) the MCC may provide a greater savings than other mortgage programs. To participate in the MCC program you must:
A13: · | B13: Have an annual income at or below $73,000 for a family of one or two, or $83,950 for a family of three or more; and
A14: · | B14: Purchase a home in the City of Portland with financing from Portland Housing Bureau (PHB) participating lender; and
A15: · | B15: Be a first-time homebuyer, which Internal Revenue Service defines as not having owned a home in the past three years.
A16: · | B16: If awarded an MCC, you must file IRS form 8296 with your federal income tax return each year during term of the loan.
A18: PRODUCT COMPARISON
A19: You have many options when selecting financing to purchase your first home. This section compares three different financing options including the Oregon Bond, a traditional market rate mortgage and that same market rate loan combined with an MCC.
A21: It is important to evaluate the terms of different loan products to determine which is best suited to your individual financial situations and which help you achieve your personal, family and financial goals. Some people have limited savings but can afford a larger monthly payment. Others have limited income but have cash in the bank for a down payment. Some people intend to buy a home and hold it long term, while others plan to own for a shorter period of time. Here are a few key questions you should ask yourself to help compare and select the product that is right for you.
A23: · | B23: How much did you pay in federal income tax last year and do you expect to pay federal income taxes in the years to come?
A24: · | B24: Do you expect your number of dependents to change over the next 10 years?
A25: · | B25: How long do you expect to remain in the home?
A26: · | B26: How much do you expect your income to increase or decrease over the next 10 years?
A27: · | B27: How much can you comfortably afford to pay for a mortgage each month?
A29: HOW THE MCC PROGRAM WORKS
A30: Under current tax law, a tax payer is generally allowed to claim the interest they pay on their purchase mortgage as a tax deduction. A tax deduction allows you to subtract that item from your gross annual income. As a result, the amount of your income that is subject to federal income tax goes down.
A32: Current tax law also allows for a variety of tax credits. Unlike a tax deduction which reduces your taxable income, a tax credit provides a dollar-for-dollar reduction in the total amount of federal income tax you pay to the IRS. The MCC program is an example of a tax credit program. The tax credit provided by a MCC is not a refundable credit which means it can only be used to reduce the federal income tax you owe for the year to zero. If, for any given year, the tax credit available to you from holding an MCC is greater than your federal tax liability before taking into account the MCC credit, you can carry forward the unused amount of the MCC credit for three successive tax years.
A34: The following chart compares a loan with the MCC to the Oregon Bond loan and a traditional market rate mortgage and the difference between the interest deduction and the MCC tax credit.
A36: ='MCC Comparison Summary'!A17:B17 -> SALE AND FIRST MORTGAGE LOAN ASSUMPTIONS | C36: ='MCC Comparison Summary'!C17 -> Oregon Bond | D36: ='MCC Comparison Summary'!D17 -> Traditional Loan | E36: ='MCC Comparison Summary'!E17 -> MCC
B37: ='MCC Comparison Summary'!B18 -> Sales Price | C37: ='MCC Comparison Summary'!C18 -> 0 | D37: ='MCC Comparison Summary'!D18 -> 0 | E37: ='MCC Comparison Summary'!E18 -> 0
B38: ='MCC Comparison Summary'!B19 -> Amount of Second Mortgage used for Purchase | C38: ='MCC Comparison Summary'!C19 -> 0 | D38: ='MCC Comparison Summary'!D19 -> 0 | E38: ='MCC Comparison Summary'!E19 -> 0
B39: ='MCC Comparison Summary'!B20 -> Borrower Down Payment | C39: ='MCC Comparison Summary'!C20 -> 0 | D39: ='MCC Comparison Summary'!D20 -> 0 | E39: ='MCC Comparison Summary'!E20 -> 0
B40: ='MCC Comparison Summary'!B21 -> FHA Upfront MIP | C40: ='MCC Comparison Summary'!C21 -> 0 | D40: ='MCC Comparison Summary'!D21 -> 0 | E40: ='MCC Comparison Summary'!E21 -> 0
B41: ='MCC Comparison Summary'!B22 -> First Mortgage Loan Amount (incl. up front MI on FHA loans) | C41: ='MCC Comparison Summary'!C22 -> 0 | D41: ='MCC Comparison Summary'!D22 -> 0 | E41: ='MCC Comparison Summary'!E22 -> 0
B42: ='MCC Comparison Summary'!B23 -> First Mortgage Note Rate | C42: ='MCC Comparison Summary'!C23 -> 0 | D42: ='MCC Comparison Summary'!D23 -> 0 | E42: ='MCC Comparison Summary'!E23 -> 0
B43: ='MCC Comparison Summary'!B24 -> Monthly Mortgage Insurance Premium Rate | C43: ='MCC Comparison Summary'!C24 -> 0 | D43: ='MCC Comparison Summary'!D24 -> 0 | E43: ='MCC Comparison Summary'!E24 -> 0
B44: ='MCC Comparison Summary'!B25 -> Loan Term (years) | C44: ='MCC Comparison Summary'!C25 -> 0 | D44: ='MCC Comparison Summary'!D25 -> 0 | E44: ='MCC Comparison Summary'!E25 -> 0
B45: ='MCC Comparison Summary'!B26 -> Annual Interest (1st year) | C45: ='MCC Comparison Summary'!C26 -> 0 | D45: ='MCC Comparison Summary'!D26 -> 0 | E45: ='MCC Comparison Summary'!E26 -> 0
B46: ='MCC Comparison Summary'!B27 -> MCC Credit (20% of 1st year interest) | C46: ='MCC Comparison Summary'!C27 -> 5e-07 | D46: ='MCC Comparison Summary'!D27 -> 5e-06 | E46: ='MCC Comparison Summary'!E27 -> 0
A48: Here’s how the MCC program might affect your federal tax liability based upon the information your loan officer input into the MCC Comparison Spreadsheet. This will show you which loan program may result in the lowest tax liability to you.
A50: ='MCC Comparison Summary'!A60:B60 -> FEDERAL TAX ESTIMATE 1., 2. | C50: ='MCC Comparison Summary'!C60 -> Oregon Bond | D50: ='MCC Comparison Summary'!D60 -> Traditional Loan | E50: ='MCC Comparison Summary'!E60 -> MCC
B51: ='MCC Comparison Summary'!B61:C61 -> Gross Annual Income | C51: ='MCC Comparison Summary'!C61 -> 0 | D51: ='MCC Comparison Summary'!D61 -> 0 | E51: ='MCC Comparison Summary'!E61 -> 0
B52: ='MCC Comparison Summary'!B62:C62 -> Less Interest, Property Tax and Mortgage Insurance Deductions | C52: ='MCC Comparison Summary'!C62 -> 0 | D52: ='MCC Comparison Summary'!D62 -> 0 | E52: ='MCC Comparison Summary'!E62 -> 0
B53: ='MCC Comparison Summary'!B63:C63 -> Less IRS Exemptions | C53: ='MCC Comparison Summary'!C63 -> -3650 | D53: ='MCC Comparison Summary'!D63 -> -3650 | E53: ='MCC Comparison Summary'!E63 -> -3650
B54: ='MCC Comparison Summary'!B64:C64 -> Other Deductions | C54: ='MCC Comparison Summary'!C64 -> 0 | D54: ='MCC Comparison Summary'!D64 -> 0 | E54: ='MCC Comparison Summary'!E64 -> 0
B55: ='MCC Comparison Summary'!B65:C65 -> Estimated Taxable Income | C55: ='MCC Comparison Summary'!C65 -> -3650 | D55: ='MCC Comparison Summary'!D65 -> -3650 | E55: ='MCC Comparison Summary'!E65 -> -3650
B56: ='MCC Comparison Summary'!B66 -> 2010 Tax Liability from Calculator | C56: ='MCC Comparison Summary'!C66 -> FALSE | D56: ='MCC Comparison Summary'!D66 -> FALSE | E56: ='MCC Comparison Summary'!E66 -> FALSE
B57: ='MCC Comparison Summary'!B67 -> Estimate Child Tax Credit | C57: ='MCC Comparison Summary'!C67 -> 0 | D57: ='MCC Comparison Summary'!D67 -> 0 | E57: ='MCC Comparison Summary'!E67 -> 0
B58: ='MCC Comparison Summary'!B68 -> Other Tax Credits (enter as a negative figure) | C58: ='MCC Comparison Summary'!C68 -> 0 | D58: ='MCC Comparison Summary'!D68 -> 0 | E58: ='MCC Comparison Summary'!E68 -> 0
B59: ='MCC Comparison Summary'!B69 -> Estimated Tax Liability (Before MCC) | C59: ='MCC Comparison Summary'!C69 -> 0 | D59: ='MCC Comparison Summary'!D69 -> 0 | E59: ='MCC Comparison Summary'!E69 -> 0
B60: ='MCC Comparison Summary'!B70 -> Less VALUE OF MCC Tax Credit (based on anticipated tax liability) | C60: ='MCC Comparison Summary'!C70 -> 0 | D60: ='MCC Comparison Summary'!D70 -> 0 | E60: ='MCC Comparison Summary'!E70 -> 0
B61: ='MCC Comparison Summary'!B71 -> ESTIMATED Net Fed income Tax Owed 2.3. | C61: ='MCC Comparison Summary'!C71 -> 0 | D61: ='MCC Comparison Summary'!D71 -> 0 | E61: ='MCC Comparison Summary'!E71 -> 0
A63: The estimated net value of the MCC to you during the first full year of ownership would be: | E63: =-E60 -> 0
A64: This number may be lower than the full MCC credit available because your "Estimated Tax Liability (Before MCC)" above was less than the available "MCC Credit (20% of 1st year interest)". Remember however, that the unused portion of the MCC credit can be carried forward and applied toward your federal income tax liability over the next three years.
A66: Recapture Tax
A67: Both the Oregon Bond and the MCC programs require the home to be owner-occupied and each has a recapture clause that allows the IRS, under certain circumstances, to recapture lost tax revenue upon sale of the home. However, all three of the following must apply for you to be subject to a recapture tax:
A69: · | B69: You sell the home within nine years from the original purchase date; AND
A70: · | B70: You sell the home at a profit after accounting for all costs to sell the home; AND
A71: · | B71: Your income exceeds federal income thresholds. That threshold is set at the maximum program income limit established in the year you purchase the home plus a 5% annual income increase allowance, adjusted for family size.
A73: If ALL three apply, the maximum recapture tax you may have to pay is 6.25% of the original MCC loan amount. The percentage of recapture tax potential adjusts annually over the first nine years of the loan, starting at 20% of this amount if you sell in the first year, increasing annually at 20% to peak at 100% in year 5, and then decreasing annually by 20% until it is completely removed in year 10. The chart below reflects this increase and decrease over time. After year 9 you are no longer subject to a recapture tax.
A76: You provided your loan officer with the following information about your plans over the next few years:
A78: · | B78: ='MCC Data Input'!B75 -> Number of years you expect to own this home | D78: ='MCC Data Input'!G75 -> 0
A79: · | B79: ='MCC Data Input'!B76 -> Homebuyer(s) estimated annual income at sale | C79: $ | D79: ='MCC Data Input'!G76 -> 0
A80: · | B80: ='MCC Data Input'!B77 -> Estimated household size at sale | D80: ='MCC Data Input'!G77 -> 0
A81: · | B81: ='MCC Data Input'!B78 -> Estimated annual appreciation | D81: ='MCC Data Input'!G78 -> 0
A82: · | B82: ='MCC Data Input'!B79 -> Estimated costs of sale | D82: ='MCC Data Input'!G79 -> 0
A84: Based upon this information, we have estimated the recapture tax impact as outlined below. If these assumptions change, the recapture tax estimate will change as well.
A86: ='MCC Comparison Summary'!A72:B72 -> ESTIMATED RECAPTURE TAX 4. | C86: ='MCC Comparison Summary'!C72 -> Oregon Bond | D86: ='MCC Comparison Summary'!D72 -> Traditional Loan | E86: ='MCC Comparison Summary'!E72 -> MCC
B87: ='MCC Comparison Summary'!B73 -> Estimated Recapture Tax (only applies if sold within 9 years of purchase) | C87: ='MCC Comparison Summary'!C73 ->  | D87: ='MCC Comparison Summary'!D73 -> 0 | E87: ='MCC Comparison Summary'!E73 -> 
A89: If you intend to sell the home within 9 years of purchase, we recommend that you seek the services of a qualified tax advisor to assist you in determining the full impact of the recapture tax to you. You can also contact the IRS and request Form 8828 and the form instructions. Both are available on the IRS website at www.irs.gov.
A91: Note Rate and Annual Percentage Rate (APR) Comparison
A92: There are two interest rates you should evaluate when comparing loan products – the Note Rate and the Annual Percentage Rate (APR.) The Note Rate is the interest rate used to calculate the monthly payment you will make over the term of the loan. The APR is intended to make it easier for you to compare loan options by factoring in prepaid financing costs such as loan fees, discount points and mortgage insurance. These costs are added to the total interest you will pay over the term of the loan to determine your “total finance charge.” This total finance charge is then converted to an interest rate or APR which tells you the true cost of your borrowing over time.
A94: The MCC effectively reduces the interest you pay on your MCC mortgage by returning a portion of that interest to you in the form of a tax credit. How you use your MCC and what tax liability you have in the future will determine the true impact the MCC will have on your APR over time. For the program to have any benefit at all, you must file IRS Form 8396 – Mortgage Interest Credit each year with your federal income tax returns. Below are some examples of how the APR for these example mortgages would be affected at different stages of the loan.
A96: ='MCC Comparison Summary'!A44:B44 -> FIRST MORTGAGE APR COMPARISON | C96: =C86 -> Oregon Bond | D96: =D86 -> Traditional Loan | E96: =E86 -> MCC
B97: ='MCC Comparison Summary'!B45 -> Estimated Annual Percentage Rate (APR) at closing | C97: ='MCC Comparison Summary'!C45 ->  | D97: ='MCC Comparison Summary'!D45 ->  | E97: ='MCC Comparison Summary'!E45 -> 
B98: ='MCC Comparison Summary'!B46 -> Eff. Interest Rate if MCC is used for only 9 years (but runs 30 yrs) | E98: ='MCC Comparison Summary'!E46 -> 
B99: ='MCC Comparison Summary'!B47 -> Eff. Interest Rate if MCC is used full 30 year term | E99: ='MCC Comparison Summary'!E47 -> 
B100: ='MCC Comparison Summary'!B48 -> Eff. Int. Rate if IRS form 8396 is not filed with federal tax returns | E100: ='MCC Comparison Summary'!E48 -> 
A102: Payment Comparison
A103: The total amount of your monthly payment is one of the factors that determine how much of a loan your lender will approve. Because the MCC program provides a dollar-for-dollar reduction in your federal income taxes, many lenders will deduct this amount from your monthly payment for loan qualifying purposes only. You must make the Total Monthly Mortgage Payment each month and then claim the tax credit at the end of the year when you file your taxes.
A105: ='MCC Comparison Summary'!A34:B34 -> MONTHLY PAYMENT COMPARISON | C105: =C96 -> Oregon Bond | D105: =D96 -> Traditional Loan | E105: =E96 -> MCC
B106: ='MCC Comparison Summary'!B35 -> First Mortgage Principal and Interest | C106: ='MCC Comparison Summary'!C35 ->  | D106: ='MCC Comparison Summary'!D35 ->  | E106: ='MCC Comparison Summary'!E35 -> 
B107: ='MCC Comparison Summary'!B36 -> Second Mortgage Principal and Interest | C107: ='MCC Comparison Summary'!C36 -> 0 | D107: ='MCC Comparison Summary'!D36 -> 0 | E107: ='MCC Comparison Summary'!E36 -> 0
B108: ='MCC Comparison Summary'!B37 -> Estimated Monthly Property Taxes | C108: ='MCC Comparison Summary'!C37 -> 0 | D108: ='MCC Comparison Summary'!D37 -> 0 | E108: ='MCC Comparison Summary'!E37 -> 0
B109: ='MCC Comparison Summary'!B38 -> Estimated Monthly Hazard Insurance Premium | C109: ='MCC Comparison Summary'!C38 -> 0 | D109: ='MCC Comparison Summary'!D38 -> 0 | E109: ='MCC Comparison Summary'!E38 -> 0
B110: ='MCC Comparison Summary'!B39 -> Estimated Monthly Mortgage Insurance | C110: ='MCC Comparison Summary'!C39 -> 0 | D110: ='MCC Comparison Summary'!D39 -> 0 | E110: ='MCC Comparison Summary'!E39 -> 0
B111: ='MCC Comparison Summary'!B40 -> Homeowners Association Dues | C111: ='MCC Comparison Summary'!C40 -> 0 | D111: ='MCC Comparison Summary'!D40 -> 0 | E111: ='MCC Comparison Summary'!E40 -> 0
B112: ='MCC Comparison Summary'!B41 -> Total Monthly Mortgage Payment | C112: ='MCC Comparison Summary'!C41 ->  | D112: ='MCC Comparison Summary'!D41 ->  | E112: ='MCC Comparison Summary'!E41 -> 
B113: ='MCC Comparison Summary'!B42 -> Maximum Monthly MCC Tax Credit | C113: ='MCC Comparison Summary'!C42 -> 0 | D113: ='MCC Comparison Summary'!D42 -> 0 | E113: ='MCC Comparison Summary'!E42 -> 0
B114: ='MCC Comparison Summary'!B43 -> Net Effective Monthly Payment | C114: ='MCC Comparison Summary'!C43 ->  | D114: ='MCC Comparison Summary'!D43 ->  | E114: ='MCC Comparison Summary'!E43 -> 
A116: Loan Fees and Settlement Charges
A117: Loan fees and settlement charges vary by loan product and between lenders. In researching different financing options you should request a loan cost analysis for each product you are considering. These estimates detail each fee you are likely to be charged at loan closing. With recent changes in Federal Truth in Lending Laws to loan disclosure requirements, this document may be called by a different name by different lenders. Once you have a signed purchase and sale agreement your lender must provide you with a “Truth-in-Lending Disclosure” and a “Good Faith Estimate of Settlement Charges” for each loan product you are considering.
A119: Two areas to pay particular attention to are “Prepaid Interest” and “Reserves Deposited with Lender”. You will pay interest on your loan from the date you close to the first of the next month. This is called “Prepaid Interest”. You will also be required to make an initial deposit into a reserve account through which your lender will pay your property taxes and hazard insurance. Lenders will estimate the number of days of interest and the number of months of reserve deposits that will be necessary and these can vary greatly from lender to lender during the initial application phase. Make sure that each disclosure includes the same number of days of “Prepaid Interest” and the same estimated months of “Reserves.” If these are different it may incorrectly lead you to believe one product will cost you less at closing than another.
A121: ='MCC Comparison Summary'!A49:B49 -> LOAN FEES | C121: =C105 -> Oregon Bond | D121: =D105 -> Traditional Loan | E121: =E105 -> MCC
B122: ='MCC Comparison Summary'!B50 -> Loan Origination Fee (% of loan amount) | C122: ='MCC Comparison Summary'!C50 -> 0 | D122: ='MCC Comparison Summary'!D50 -> 0 | E122: ='MCC Comparison Summary'!E50 -> 0
B123: ='MCC Comparison Summary'!B51 -> Loan Origination Fee ($ amount) | C123: ='MCC Comparison Summary'!C51 -> 0 | D123: ='MCC Comparison Summary'!D51 -> 0 | E123: ='MCC Comparison Summary'!E51 -> 0
B124: ='MCC Comparison Summary'!B52 -> Other Prepaid Finance Charges (excluding Loan Orig. Fee) | C124: ='MCC Comparison Summary'!C52 -> 0 | D124: ='MCC Comparison Summary'!D52 -> 0 | E124: ='MCC Comparison Summary'!E52 -> 0
B125: ='MCC Comparison Summary'!B53 -> Prepaid/Reserves Deposited with Lender | C125: ='MCC Comparison Summary'!C53 -> 0 | D125: ='MCC Comparison Summary'!D53 -> 0 | E125: ='MCC Comparison Summary'!E53 -> 0
B126: ='MCC Comparison Summary'!B54 -> MCC Fee | C126: ='MCC Comparison Summary'!C54 -> 0 | D126: ='MCC Comparison Summary'!D54 -> 0 | E126: ='MCC Comparison Summary'!E54 -> 675
B127: ='MCC Comparison Summary'!B55 -> 3rd Party Fees | C127: ='MCC Comparison Summary'!C55 -> 0 | D127: ='MCC Comparison Summary'!D55 -> 0 | E127: ='MCC Comparison Summary'!E55 -> 0
B128: ='MCC Comparison Summary'!B56 -> Second Mortgage Loan Fees | C128: ='MCC Comparison Summary'!C56 -> 0 | D128: ='MCC Comparison Summary'!D56 -> 0 | E128: ='MCC Comparison Summary'!E56 -> 0
B129: ='MCC Comparison Summary'!B57 -> Total Loan Fees | C129: ='MCC Comparison Summary'!C57 -> 0 | D129: ='MCC Comparison Summary'!D57 -> 0 | E129: ='MCC Comparison Summary'!E57 -> 675
B130: ='MCC Comparison Summary'!B58 -> Down Payment from borrowers own funds | C130: ='MCC Comparison Summary'!C58 -> 0 | D130: ='MCC Comparison Summary'!D58 -> 0 | E130: ='MCC Comparison Summary'!E58 -> 0
B131: ='MCC Comparison Summary'!B59 -> Total Estimated Cost to Close | C131: ='MCC Comparison Summary'!C59 -> 0 | D131: ='MCC Comparison Summary'!D59 -> 0 | E131: ='MCC Comparison Summary'!E59 -> 675
A133: How to use your MCC once awarded
A134: We recommend that you consult an accountant or professional financial advisor to help you determine which loan product best meets your short term and long term financial goals. The MCC is of most value to you if you expect to owe federal income taxes today and in future years. And then only if you file IRS Form 8396 with your federal income tax returns.
A136: WHAT NEXT?
A137: Personal, family and financial goals differ and what is right for one homebuyer may not be right for another. In deciding what loan program is best for you, you need to carefully consider all of your financing options including the impact on your monthly payment, income taxes, and costs over time and upon refinancing or sale of the home. For more information about the MCC program contact a MCC-Approved Participating Lender or PHB at 503.823.2375.
A139: ACKNOWLEDGEMENT
B142: =C9 ->  | D142: ='MCC Data Input'!E7 -> 00:00:00
B143: ='MCC Data Input'!$E$27 -> 0 | D143: Date
D146: =D142 -> 00:00:00
B147: =B9 ->  | D147: Date

Sheet MCC Transmittal
H2: =IF('MCC Comparison Summary'!E16="OVER INCOME","OVER INCOME"," ") -> 
A4: MCC INITIAL APPLICATION TRANSMITTAL FORM
A6: ='MCC Data Input'!A7 -> Disclosure Date | C6: ='MCC Data Input'!E7 -> 00:00:00 | H6: ='MCC Data Input'!A130 -> Escrow Number | K6: =+'MCC Data Input'!E130 -> 0
A7: ='MCC Data Input'!A9 -> Loan Number | C7: ='MCC Data Input'!E9 -> 0 | H7: ='MCC Data Input'!A131 -> Estimated Closing Date | K7: ='MCC Data Input'!E131 -> 00:00:00
A8: Loan Amount | C8: ='MCC Comparison Summary'!E22 -> 0
A10: Lender Name | C10: ='MCC Data Input'!E8 -> 0 | H10: =+'MCC Data Input'!A129 -> Escrow Company | J10: ='MCC Data Input'!E129 -> 0
A11: ='MCC Data Input'!A10 -> Loan Officer | C11: ='MCC Data Input'!E10 -> 0 | H11: ='MCC Data Input'!A132 -> Escrow Agent | J11: ='MCC Data Input'!E132 -> 0
A12: ='MCC Data Input'!H11 -> Business Phone | C12: ='MCC Data Input'!E11 -> 0 | H12: =A12 -> Business Phone | J12: ='MCC Data Input'!E133 -> 0
A13: ='MCC Data Input'!H13 -> Fax Number | C13: ='MCC Data Input'!E13 -> 0 | H13: =A13 -> Fax Number | J13: ='MCC Data Input'!E134 -> 0
A14: ='MCC Data Input'!H14 -> Email Address | C14: ='MCC Data Input'!E14 -> 0 | H14: =A14 -> Email Address | J14: ='MCC Data Input'!E135 -> 0
A16: Applicant Name | C16: ='MCC Data Input'!E27 -> 0
A17: Co-Applicant Name | C17: =IF('MCC Data Input'!E28=0,"None",+'MCC Data Input'!E28) -> None | I17: Information can be submitted via Fax or Email to 503-865-3480 or mcc@portlandoregon.gov
A18: ='MCC Data Input'!B39 -> Property Address | C18: ='MCC Data Input'!E39 -> 0
C19: ='MCC Data Input'!E40 -> 0
A21: THE FOLLOWING DOCUMENTS MUST BE SUBMITTED IN THE INITIAL MCC APPLICATION PACKAGE: (Check each item included in the package, incomplete packages will not be processed)
E23: MCC Initial Application Transmittal Form (form MCC-02)
E25: MCC Disclosure (form MCC-01c) - signed
E27: Printed MCC Data Input Sheet (form MCC-01a)
E29: Printed MCC Comparison Summary (form MCC-01b)
E31: 1003 prepared for Underwriting
E33: 1008/MCAW prepared for Underwriting
E35: Initial Reg Z and Good Faith Estimate
E37: Application Affidavit (form MCC-03) signed and witnessed
E39: Notice of Potential Recapture Tax (form MCC-05) signed
E41: Executed Purchase and Sale Agreement (copy)
A43: INDIVIDUAL SUBMITTING THIS MCC APPLICATION PACKAGE HAS CONFIRMED THAT THE 1003, 1008 AND MCC DISCLOSURES SHOW THE SAME: (check each to confirm match)
E45: Borrower Income
E47: Sale Price
E49: Loan Amount and terms

Sheet MCC Recapture Notice
A1: MAILING ADDRESS | G1: MCC NO: _____________________________
A2: Portland Housing Bureau
A3: 421 SW 6th Avenue, Suite 500
A4: Portland, OR 97204
A5: TEL: 503-823-2375 FAX: 503-865-3480 | F5: =IF('MCC Comparison Summary'!E16="OVER INCOME","OVER INCOME"," ") -> 
A6: EMAIL: mcc@portlandoregon.gov
A10: Applicant Name: | D10: ='MCC Data Input'!E27 -> 0
A12: Co-Applicant Name: | D12: =IF('MCC Data Input'!E28=0," ",+'MCC Data Input'!E28) -> 
A17: NOTICE OF POTENTIAL RECAPTURE TAX ON SALE OF HOME
A18: (To be delivered to and signed by the Applicant(s) before a MCC commitment can be issued.)
A21: Because you are receiving a mortgage credit certificate with your mortgage loan, you are receiving the benefit of a credit against your federal income taxes. If you sell or otherwise dispose of your home during the next nine years, part or all of this benefit may be "recaptured." The recapture is accomplished by an increase in your federal income tax for the year in which you sell your home. The recapture only applies, however, if you sell your home at a gain and if your income increases above specified levels.
A23: The recapture was enacted in 1988. According to the United States General Accounting Office, the purpose of the recapture is to retrieve the subsidy from owners who experience repaid income increases after purchase of their home and, as a result, do not need the subsidy to remain homeowners. If you income does not increase more than 5 percent per year, you will likely not incur a recapture liability.
A25: You may wish to consult a tax advisor or the local office of the Internal Revenue Service at the time you sell your home to determine the amount, if any, of your actual recapture tax (see Section 143(m) of the Internal Revenue Code for details.) Along with this notice, you are being given additional information that will be needed to calculate the recapture tax.
A27: The undersigned Applicant(s) has (have) received and read a duplicate copy of the foregoing Notice of Potential Recapture Tax on Sale of Home.
A29: Date:
F30: ='MCC Data Input'!E27 -> 0 | J30: (Applicant)
A34: Date:
F35: =IF('MCC Data Input'!E28=0," ",+'MCC Data Input'!E28) ->  | J35: (Co-Applicant)

Sheet MCC Application Affidavit
A1: MAILING ADDRESS | J1: MCC NO: _______________________
A2: Portland Housing Bureau
A3: 421 SW 6th Avenue, Suite 500
A4: Portland, OR 97204 | F4: =IF('MCC Comparison Summary'!E16="OVER INCOME","OVER INCOME"," ") -> 
A5: Phone - 503-823-2375 Fax 503-865-3480
A6: Email: mcc@portlandoregon.gov
A9: APPLICATION AFFIDAVIT
A11: THERE ARE IMPORTANT LEGAL CONSEQUENCES TO THIS LEGAL AFFIDAVIT.
A12: READ IT CAREFULLY BEFORE SIGNING
A14: I (We) the undersigned, as part of my (our) application for a mortgage credit certificate ("MCC") from the City of Portland through the Portland Housing Bureau ("PHB”), issuer of such certificates under the PHB’s Mortgage Credit Certificate Program (the "Program"), and as a material inducement to the PHB to issue such certificate to the undersigned in connection with the financing with a mortgage loan (the "Mortgage Loan") from a lender of the undersigned's choosing (the "Lender"), for the undersigned's purchase of a single-family home (the "Residence"), being first duly sworn, state the following:
A16: 1. | B16: I (We) certify that the following are:
B18: a. | C18: ='MCC Data Input'!E27 -> 0
C19: Applicant
C21: =IF('MCC Data Input'!E28=0," ",+'MCC Data Input'!E28) -> 
C22: Co-Applicant
B24: b. | C24: ='MCC Data Input'!E98 -> 0
C25: Current Residence
C27: ='MCC Data Input'!E99 -> 0
C28: City/State/Zip
B30: c. | C30: ='MCC Data Input'!E95 -> 0 | F30: ='MCC Data Input'!E96 -> 0
C31: Home Phone | F31: Work Phone
A33: 2. | B33: The Residence being purchased is a single-family home located within the limits of the City of Portland at the following address:
C35: ='MCC Data Input'!E39 -> 0
C36: Property Address
C38: ='MCC Data Input'!E40 -> 0
C39: City/State/Zip
B41: CHECK HERE IF PROPERTY IS LOCATED WITHIN A TARGET AREA: | H41: =IF('MCC Data Input'!E41="No"," ","X") -> 
B42: If so, map showing location of property must accompany this document.
A44: 3. | B44: I (We) certify that the Residence will be occupied and used as my (our) principal place of residence within sixty (60) days after the date of the Mortgage Loan Closing. I (We) certify that the Residence will not be used as an investment property, vacation home, or recreational home and that not more than fifteen (15%) percent of the area of the Residence will be used in a trade or business. I (We) certify that I (we) will notify the PHB in writing if the residence ceases to be my (our) principal Residence.
A46: 4. | B46: If the loan application is for a loan on a newly constructed home, I (we) certify that the Residence has not and will not be occupied prior to loan commitment.
A48: 5. | B48: (We) understand and agree that I(we) will pay a fee of $675.00 to PHB as the administrator of the Program.
A50: 6. | B50: If the Residence is newly constructed, I (we) certify that the proceeds of the Mortgage Loan will not be used to replace an existing mortgage unless the existing mortgage is for: (1) a construction period loan of not greater than 24 months, or (2) a bridge loan or similar temporary initial financing of 24 months or less. If the Residence is a previously occupied home, I (we) certify that the proceeds of the Mortgage Loan will not be used to replace my (our) existing mortgage.
A52: 7. | B52: PLEASE NOTE, IF PURCHASING IN A DESIGNATED TARGET AREA, THIS REQUIREMENT IS WAIVED.
B53: I (We) understand that I (we) am (are) not eligible for an MCC from the PHB under this program if I (we) individually or together had an ownership interest in a principal residence within three years prior to the date this application affidavit was signed and witnessed below.
B55: I (We) also understand that I (we) cannot have an ownership interest in a principal residence between the date of application and closing. For this purpose, a principal residence includes a single-family residence, condominium, share in a housing cooperative, any manufactured home or mobile home (as defined under federal and state law), or occupancy in a multifamily residence owned by me (us). For this purpose, an ownership interest means ownership by any means, whether outright or partial, including property subject to mortgage or other security interest. An ownership interest also means a fee simple ownership interest, a joint ownership interest by joint tenancy, tenancy in common, or tenancy by the entirety, or a life estate interest. I (We) certify that I (we) have listed below all places of residence, whether owned or not, for a three-year period prior to the date this application affidavit was signed and witnessed below.
B57: Previous Residences Over the Preceding Three-year Period (add addendum if more space is needed.)
A59: a. | B59: ='MCC Data Input'!E98 -> 0 | F59: ='MCC Data Input'!E102 -> 00:00:00 | I59: ='MCC Data Input'!G102 -> 00:00:00
B60: Current Address | F60: Beginning | I60: Ending Dates of Residency
B61: ='MCC Data Input'!E99 -> 0 | F61: ='MCC Data Input'!E100 -> Rent
B62: City/State/Zip | F62: Own/Rent
A64: b. | B64: ='MCC Data Input'!E108 -> 0 | F64: =IF('MCC Data Input'!E112=0,"NA",+'MCC Data Input'!E112) -> NA | I64: =IF('MCC Data Input'!G112=0,"NA",+'MCC Data Input'!G112) -> NA
B65: Previous Address | F65: Beginning | I65: Ending Dates of Residency
B66: ='MCC Data Input'!E109 -> 0 | F66: ='MCC Data Input'!E110 -> Rent
B67: City/State/Zip | F67: Own/Rent
A69: c. | B69: ='MCC Data Input'!E118 -> 0 | F69: =IF('MCC Data Input'!E122=0,"NA",+'MCC Data Input'!E122) -> NA | I69: =IF('MCC Data Input'!G122=0,"NA",+'MCC Data Input'!G122) -> NA
B70: Previous Address | F70: Beginning | I70: Ending Dates of Residency
B71: ='MCC Data Input'!E119 -> 0 | F71: ='MCC Data Input'!E120 -> Rent
B72: City/State/Zip | F72: Own/Rent
B74: Name, Address and Telephone of the Owner or Landlord Who Can Verify Each Residence Listed Above Which Was Not Owned by the Applicant (add addendum if more space is needed.)
A76: d. | B76: ='MCC Data Input'!E103 -> 0 | F76: ='MCC Data Input'!E104 -> 0
B77: Landlord Name | F77: Address
B78: ='MCC Data Input'!E106 -> 0 | F78: ='MCC Data Input'!E105 -> 0
B79: Phone | F79: City/State/Zip
A81: e. | B81: ='MCC Data Input'!E113 -> 0 | F81: ='MCC Data Input'!E114 -> 0
B82: Landlord Name | F82: Address
B83: ='MCC Data Input'!E116 -> 0 | F83: ='MCC Data Input'!E115 -> 0
B84: Phone | F84: City/State/Zip
A86: f. | B86: ='MCC Data Input'!E123 -> 0 | F86: ='MCC Data Input'!E124 -> 0
B87: Landlord Name | F87: Address
B88: ='MCC Data Input'!E126 -> 0 | F88: ='MCC Data Input'!E125 -> 0
B89: Phone | F89: City/State/Zip
A91: 8. | B91: I (We) certify that I (we) am (are) required to and will hereby submit true and complete copies of my (our) actual signed federal tax returns as filed for the preceding three (3) tax years or such other written verification that is acceptable to the MCC Program.
A93: 9. | B93: I (We) certify that the total purchase price of the residence and land as a completed residence, including all construction items, all commissions, all builder's fees, hook-up and tap-in fees, permits, architectural fees, all site improvements, discount points paid by the seller, work credit, subcontracted items, or construction loan interest, but excluding any closing costs and permanent financing charges will be:
B94: $ | C94: ='MCC Data Input'!E46 -> 0
B95: (sales price including all fees but excluding closing costs and permanent finance cost) and will not exceed the purchase price limitation applicable to the Residence appearing in the following schedule:
B97: Purchase Price Limit | E97: Indicate if house is:
B98: 424051 | E98: New Construction | H98: =IF('MCC Data Input'!E42="New Construction","X"," ") -> 
A100: 10. | B100: I (We) certify that the amount listed in paragraph 9 of this affidavit is (i) the sole payment by the buyer and there are no payments to be made by related persons or for the benefit of the buyer and (ii) the residence is not being purchased subject to ground rent.
A102: 11. | B102: I (We) certify that the residence : | F102: =IF('MCC Data Input'!E42="Existing","has",+'MCC Data Input'!E43) -> 0 | G102: been completely constructed. If the
B103: residence has not been completely constructed, my estimate for the reasonable cost of completing the residence is:
B105: $ | C105: ='MCC Data Input'!E44 -> 0
A107: 12. | B107: I (We) certify that the Certified Indebtedness (mortgage amount) is: | J107: ='MCC Comparison Summary'!E22 -> 0
A109: 13. | B109: I (We) further certify that no side deal or agreement, either verbal or written, is presently contemplated for the completion of or the addition to this Residence unless the estimated cost of the completion and/or addition is included in the purchase price.
A111: 14. | B111: I (We) certify that no portion of the financing of the acquisition of this Residence is or will be provided from the proceeds of a qualified mortgage bond or a qualified veteran's mortgage bond. No person related to me (as defined in applicable federal or state laws and regulations) has or is expected to have an interest as a creditor in the Mortgage Loan being acquired for the Residence.
A113: 15. | B113: I (We) understand and agree that if an MCC is issued to me (us), it may not be transferred unless (i) the home is purchased by an eligible MCC applicant (the "Transferee"), (ii) the Transferee assumes the remaining certified indebtedness (mortgage, and (iii) PHB issues a new certificate to the Transferee.
A115: 16. | B115: I (We) understand and agree that I (we) may seek financing from any lender of my (our) choosing and that I (we) am (are) in no way prohibited from seeking financing from any potential lender, so long as the lender agrees to execute and comply with the terms and conditions of the PHB Lender Participation Agreement.
A117: 17. | B117: I (We) understand that I (we) am (are) not eligible for an MCC unless my (our) gross annual income* does not exceed:
C119: Household Size | E119: Income Limit
C120: 1 - 2 | E120: ='Recapture Calculator'!B50 -> 73000
C121: 3 or more | E121: ='Recapture Calculator'!C50 -> 83950
A123: 18. | B123: I (We) certify that my (our) current gross annual income* as defined below is:
B125: $ | C125: ='MCC Data Input'!E30 -> 0 | E125: and
B127: THE NUMBER OF PERSONS IN THE HOUSEHOLD IS: | G127: ='MCC Data Input'!E29 -> 0
A129: 19. | B129: I (We) acknowledge and understand that this Affidavit will be relied upon for purposes of determining my (our) eligibility for an MCC. I (We) acknowledge and understand that all statements made in this affidavit are under penalty of perjury and that any fraudulent statement will result in (i) the revocation of the individual's (buyer's) mortgage credit certificate and (ii) a $10,000 penalty under Internal Revenue Code Section 6709. I (We) acknowledge that a material misstatement negligently made in this affidavit or in any other statement made by me (us) in connection with an application for an MCC will constitute a federal violation punishable by a fine; and a material misstatement fraudulently made in this affidavit or in any other statement made by me (us) in connection with application for an MCC, will constitute a federal violation punishable by a fine and revocation of the Certificate, which may be in addition to any criminal penalty imposed by law. In addition, any material misstatement or false statement which affects my (our) eligibility for an MCC will result in a denial of my (our) application for an MCC, or, if an MCC has been issued prior to discovery of the false statement, immediate cancellation of the MCC issued.
A131: 20. | B131: In addition, I (we) hereby acknowledge and understand that any false pretense, including any false statement or representation or the fraudulent use of any instrument, facility, article, or other valuable thing or service pursuant to my (our) participation in any Portland Housing Bureau program, is punishable by imprisonment or by a fine.
A132: APPLICANT ACKNOWLEGDEMENT
A136: ='MCC Data Input'!E27 -> 0 | F136: Date | I136: Enter Social Security Number
A140: ='MCC Data Input'!E28 -> 0 | F140: Date | I140: Enter Social Security Number
A142: APPLICANTS SIGNATURE MUST BE NOTARIZED OR ACKNOWLEDGED BY TWO WITNESSES
A144: I certify that I personally witnessed the above named applicant and co-applicant execute this Application Affidavit.
A148: WITNESS 1 | F148: Date
A151: WITNESS 2 | F151: Date
A153: LENDER'S CERTIFICATION
A155: Name of Lender: | D155: ='MCC Data Input'!E8 -> 0
A157: The lender hereby certifies that to the best of its knowledge and belief each of the foregoing statements is true and correct and each of them is consistent with the information submitted by the applicant(s) in connection with his/her application for a loan.
A159: Lender further certifies that (check the following statement that correctly applies to this application) (Requirement is waived if purchasing in a Target Area):
A161: £ | B161: The Lender has been furnished with said tax returns or verifications and certification that the applicant has met the three (3) year principal residence non-ownership requirement.
A163: £ | B163: The Lender has not been furnished with said tax returns or verification and certification that the applicant has met the (3) year Principal residence non-ownership requirements, and the Commitment is conditioned upon receipt of said returns or acceptable verification and certification.
A167: ='MCC Data Input'!E10 -> 0 | F167: Date
A168: ='MCC Data Input'!A10 -> Loan Officer
A170: "Gross Income" of a mortgagor(s) as defined by IRS Revenue Ruling 86-124 is the mortgagor's annualized gross income. Annualized gross income is the product of monthly income multiplied by 12. See Appendix A of the MCC program manual for more detailed guidelines.

Sheet Sheet1
